Workbook

Sheet Příkaz
K1: Příloha OD č. 2/2020 Evidenční číslo: | Z1: =IFERROR("Vyúčtování pracovní cesty a zprávu o pracovní cestě je nutné odevzdat nejpozději do " &TEXT(List1!$AC$1,"dd.mm.rrrr")&".","") -> Vyúčtování pracovní cesty a zprávu o pracovní cestě je nutné odevzdat nejpozději do 18.01.2024.
B2: CESTOVNÍ PŘÍKAZ K USKUTEČNĚNÍ ZAHRANIČNÍ PRACOVNÍ CESTY
B5: Jméno a příjmení: | K5: Pracoviště:
B7: Zahájení cesty | D7: Datum: | F7: 2024-01-02 | H7: Místo: | AC7: =D18&D26&D28&D30 -> 
B9: Místo konání: | X9: Stát, místo, pořadatel | AC9: PF UKPF UKPF UKPF UK
B11: Název akce/Účel:
B13: Očekávaný přínos/výstup:
B15: Ukončení cesty | D15: Datum: | F15: 2024-01-04 | H15: Místo:
B18: Jízdné hradí: | F18: upřesněte zdroj | X18: (rozpočet katedry, grant nebo projekt)
B20: Návrh na určení dopravního prostředku: | G20: A | I20: =IF(G20<>"",(VLOOKUP(G20,List1!B3:C11,2,FALSE)),"") -> Autobus | N20: =IF(G20="V","Jízdenku zařizuje:",IF(G20="A","Jízdenku zařizuje:",IF(G20="L","Letenku zařizuje:",""))) -> Jízdenku zařizuje: | X20: Standardně si zaměstnanec zajišťuje letenky/jízdenky sám.
B22: Předpokládaná výše jízdních výdajů za jehož použití mají být poskytnuty náhrady jízdních výdajů: | R22: 0
B24: Úhrada ostatních výdajů (PF UK, grant nebo jiný zdroj) | K24: Předpokládáná výše ostatních výdajů v Kč
B26: Ubytování hradí: | F26: upřesněte zdroj | R26: 0 | X26: (rozpočet katedry, grant nebo projekt) | Z26: částka v Kč
Z27: částka v Kč
B28: Stravné hradí: | F28: upřesněte zdroj | R28: 0 | X28: (rozpočet katedry, grant nebo projekt) | Z28: částka v Kč
Z29: částka v Kč
B30: Nutné vedl. výd. hradí: | F30: upřesněte zdroj | R30: 0 | X30: (rozpočet katedry, grant nebo projekt) | Z30: částka v Kč
B32: Nutné vedlejší výdaje specifikace: | X32: Specifikace
B34: ="Cestovní pojištění ("&List1!R2&"), zajištuje a hradí:" -> Cestovní pojištění (3 dny), zajištuje a hradí: | K34: Předpokládáné výdaje celkem | R34: =IF(OR(G20="SV",G20="SJ"),R26+R28+R30,R22+R26+R28+R30) -> 0
B37: Žádám o zálohu: | D37: Ne | G37: Výše zálohy: | J37: 0 | M37: USD | X37: =IF(D37<>"",IF(J37<>"",(IF(M37="CZK",1,VLOOKUP(TODAY(),'Kurzy CNB'!$A$1:$AK$315,VLOOKUP(M37,List1!$S$4:$T$36,2,FALSE),TRUE)))*J37,""),"") -> 0 | Z37: Výše v Kč podle naposledy aktualizovaného kurzu
D38: =IF(AND(D37="Ano, na bank. Účet",M37<>"CZK"),"vedený v měně "&M37,"") ->  | O38: =IF(D37="Ano, na bank. účet",IF(M37="CZK","Číslo bankovního účtu",IF(M37="EUR","IBAN","IBAN+vyplňte form. zahr. platby")),"datum vyplacení") -> datum vyplacení
B39: Pracovní cesta bude přerušena: | F39: Ne | G39: Od: | M39: Do:
H40: datum | K40: čas | O40: datum | R40: čas
B42: POUŽITÍ SOUKROMÉHO VOZIDLA NA PRACOVNÍ CESTU
B43: Vyplní řidič vozidla (zaměstnanec) před cestou.
B45: =IF(G20="SJ","Řidič vozidla:","Vlastník vozidla:") -> Vlastník vozidla:
B47: Řidič vozidla: | F47: =IF(D5="","",D5) -> 
B49: RZ vozidla: | J49: Typ vozu:
B51: Datum povinn. proškolení řidiče: | J51: Číslo havarijní pojistky:
B53: Spolucestující:
B55: Prohlašuji, že vozidlo použité na této služební cestě | H55: NENÍ | J55: v evidenci plátců silniční daně pro rok 2024.
B56: Prohlašuji, že mám platný řidičský průkaz.
B57: Přílohy: | C57: - kopie velkého technického průkazu (datum aktuální technické kontroly) - kopie dokladu o sjednání havarijního pojištění (pokud jste už neodevzdali na ekonomickém oddělení)
C59: =IF(OR(G20="V",G20="A - VV",G20="V - VV",G20="L - VV",G20="A - VV",G20="A",G20="L",)," - doklad o předpokládané výši jízdních výdajů za dopravní prostředek, za jehož použití mají být poskytnuty náhrady jízdních výdajů","") -> - doklad o předpokládané výši jízdních výdajů za dopravní prostředek, za jehož použití mají být poskytnuty náhrady jízdních výdajů
B60: =IFERROR("Prohlašuji, že podám vyúčtování pracovní cesty a zprávu pracovní cestě nejpozději do " &TEXT(List1!AC1,"dd.mm.rrrr")&".","") -> Prohlašuji, že podám vyúčtování pracovní cesty a zprávu pracovní cestě nejpozději do 18.01.2024.
B61: ="Žádám o náhradu jízdních výdajů "&IF(G20="VV","za každý kilometr jízdy sazbou základní náhrady a náhradou za spotřebované pohonné hmoty podle zákonných sazeb platných v době konání pracovní cesty.",IF(OR(G20="V - VV",G20="V"),"ve výši odpovídající ceně jízdenky za vlak do výše " & R22 &" Kč.",IF(OR(G20="A - VV",G20="A"),"ve výši odpovídající ceně jízdenky za autobus do výše " &R22&" Kč.",IF(OR(G20="L - VV",G20="L"),"ve výši odpovídající ceně letenky do výše " &R22&" Kč.","- NE.")))) -> Žádám o náhradu jízdních výdajů ve výši odpovídající ceně jízdenky za autobus do výše 0 Kč.
B64: V Praze dne | J64: Podpis zaměstnance
B74: Poznámka schvalujících
B76: Podpis řešitele grantu nebo projektu | K76: Podpis přímého nadřízeného
B80: Podpis vedoucího zahraničního oddělení | K80: Podpis tajemníka (správce rozpočtu)
B84: Podpis vedoucí ekonomického oddělení | K84: Podpis proděkanky pro zahraniční vztahy

Sheet Vyúčtování test (hidden)
B2: VYÚČTOVÁNÍ PRACOVNÍ CESTY
B3: Datum | D3: Odjezd - příjezd | G3: Použitý dopr. prostředek2) | H3: Vzdálenost v km 1) | I3: Jízdné v případě AUV | J3: Jízdné a místní přeprava | K3: Stravné | L3: Noc- ležné | M3: Nutné vedlejší výdaje | N3: Celkem | R3: Upraveno
F4: v hod. | J4: Kč | K4: Kč | L4: Kč | M4: Kč | N4: Kč | R4: Kč | Y4: Vozidlo
B5: 2020-01-02 | C5: Odjezd | F5: 10:00:00 | I5: =IF(G5="VV",ROUND(H5*$Z$14+H5*$Z$18,2),"") ->  | K5: =R26 -> 691 | N5: =(N(I5)+J5+L5+M5) -> 0 | Q5: =VLOOKUP(P27,$AC$12:$AG$16,Q27+1,FALSE) -> 91 | T5: =IF(B5="","",IF(B7="","konec","průběh")) -> průběh | U5: =VLOOKUP(IF(B5="",0,(IF(B5=B3,1000,100)+IF(B5=B7,10,1))),List1!$B$22:$D$26,3,FALSE) -> 4 | V5: =B5 -> 2020-01-02 | W5: =IF(V5<>0,B5+F5,"") -> 2020-01-02T10:00:00 | Y5: SPZ
C6: Příjezd | F6: 12:00:00 | V6: =B5 -> 2020-01-02 | W6: =IF(V5<>0,B5+F6,"") -> 2020-01-02T12:00:00 | Y6: Palivo | Z6: nafta | AD6: =AD8 -> 43832
B7: 2020-01-05 | C7: Odjezd | F7: 15:00:00 | I7: =IF(G7="VV",ROUND(H7*$Z$14+H7*$Z$18,2),"") ->  | N7: =(N(I7)+J7+L7+M7) -> 0 | Q7: =VLOOKUP(P28,$AC$12:$AG$16,Q28+1,FALSE) -> 200 | T7: =IF(B7="","",IF(B9="","konec","průběh")) -> konec | U7: =VLOOKUP(IF(B7="",0,(IF(B7=B5,1000,100)+IF(B7=B9,10,1))),List1!$B$22:$D$26,3,FALSE) -> 4 | V7: =B7 -> 2020-01-05 | W7: =IF(V7<>0,B7+F7,"") -> 2020-01-05T15:00:00 | Y7: spotřeba 1 | Z7: 3.1
C8: Příjezd | F8: 20:00:00 | V8: =B7 -> 2020-01-05 | W8: =IF(V7<>0,B7+F8,"") -> 2020-01-05T20:00:00 | Y8: spotřeba 2 | AD8: =MIN(B5:B20) -> 2020-01-02 | AE8: =MIN(W5:W20) -> 2020-01-02T10:00:00
C9: Odjezd | I9: =IF(G9="VV",ROUND(H9*$Z$14+H9*$Z$18,2),"") ->  | N9: =(N(I9)+J9+L9+M9) -> 0 | T9: =IF(B9="","",IF(B11="","konec","průběh")) ->  | U9: =VLOOKUP(IF(B9="",0,(IF(B9=B7,1000,100)+IF(B9=B11,10,1))),List1!$B$22:$D$26,3,FALSE) -> 5 | V9: =B9 -> 00:00:00 | W9: =IF(V9<>0,B9+F9,"") ->  | Y9: spotřeba 3 | AD9: =MAX(B5:B20) -> 2020-01-05 | AE9: =MAX(W5:W20) -> 2020-01-05T20:00:00
C10: Příjezd | V10: =B9 -> 00:00:00 | W10: =IF(V9<>0,B9+F10,"") ->  | Y10: spotřeba 4
C11: Odjezd | I11: =IF(G11="VV",ROUND(H11*$Z$14+H11*$Z$18,2),"") ->  | N11: =(N(I11)+J11+L11+M11) -> 0 | T11: =IF(B11="","",IF(B13="","konec","průběh")) ->  | U11: =VLOOKUP(IF(B11="",0,(IF(B11=B9,1000,100)+IF(B11=B13,10,1))),List1!$B$22:$D$26,3,FALSE) -> 5 | V11: =B11 -> 00:00:00 | W11: =IF(V11<>0,B11+F11,"") ->  | Y11: Průměr - použitá spotřeba | Z11: =ROUND(AVERAGE(Z7:Z10),2) -> 3.1 | AD11: 0 - 5 hod | AE11: 5 až 12 hod. | AF11: 12 až 18 hod. | AG11: více než 18 hod.
C12: Příjezd | V12: =B11 -> 00:00:00 | W12: =IF(V11<>0,B11+F12,"") ->  | Y12: Cena paliva z dokladu | AA12: Pokud nezadáte cenu paliva z dokladu, bude použita cena z vyhlášky | AC12: počet jídel | AD12: 0 | AE12: I | AF12: II | AG12: III
C13: Odjezd | I13: =IF(G13="VV",ROUND(H13*$Z$14+H13*$Z$18,2),"") ->  | N13: =(N(I13)+J13+L13+M13) -> 0 | T13: =IF(B13="","",IF(B15="","konec","průběh")) ->  | U13: =VLOOKUP(IF(B13="",0,(IF(B13=B11,1000,100)+IF(B13=B15,10,1))),List1!$B$22:$D$26,3,FALSE) -> 5 | V13: =B13 -> 00:00:00 | W13: =IF(V13<>0,B13+F13,"") ->  | Y13: Náhrady | AC13: 0 | AD13: 0 | AE13: 90 | AF13: 140 | AG13: 200
C14: Příjezd | V14: =B13 -> 00:00:00 | W14: =IF(V13<>0,B13+F14,"") ->  | Y14: amortizace za km | Z14: 4.1 | AC14: 1 | AD14: 0 | AE14: =AE13*0.3 -> 27 | AF14: =0.65*AF13 -> 91 | AG14: =0.75*AG13 -> 150
C15: Odjezd | I15: =IF(G15="VV",ROUND(H15*$Z$14+H15*$Z$18,2),"") ->  | N15: =(N(I15)+J15+L15+M15) -> 0 | T15: =IF(B15="","",IF(B17="","konec","průběh")) ->  | U15: =VLOOKUP(IF(B15="",0,(IF(B15=B13,1000,100)+IF(B15=B17,10,1))),List1!$B$22:$D$26,3,FALSE) -> 5 | V15: =B15 -> 00:00:00 | W15: =IF(V15<>0,B15+F15,"") ->  | Y15: benzin 95 oktanů | Z15: 33.1 | AC15: 2 | AD15: 0 | AE15: 0 | AF15: =0.3*AF13 -> 42 | AG15: =0.5*AG13 -> 100
C16: Příjezd | V16: =B15 -> 00:00:00 | W16: =IF(V15<>0,B15+F16,"") ->  | Y16: benzin 98 oktanů | Z16: 37.1 | AC16: 3 | AD16: 0 | AE16: 0 | AF16: 0 | AG16: =0.25*AG13 -> 50
C17: Odjezd | I17: =IF(G17="VV",ROUND(H17*$Z$14+H17*$Z$18,2),"") ->  | N17: 0 | T17: =IF(B17="","",IF(B19="","konec","průběh")) ->  | U17: =VLOOKUP(IF(B17="",0,(IF(B17=B15,1000,100)+IF(B17=B19,10,1))),List1!$B$22:$D$26,3,FALSE) -> 5 | V17: =B17 -> 00:00:00 | W17: =IF(V17<>0,B17+F17,"") ->  | Y17: nafta | Z17: 33.6
C18: Příjezd | V18: =B17 -> 00:00:00 | W18: =IF(V17<>0,B17+F18,"") ->  | Y18: náhrada za km paliva | Z18: =ROUND(IF(Z12=0,(VLOOKUP(Z6,Y15:Z17,2,FALSE)),Z12)*Z11/100,4) -> 1.0416 | AA18: =IF(Z12<>"","použita cena z dokladu","použita cena z vyhlášky") -> použita cena z vyhlášky
C19: Odjezd | I19: =IF(G19="VV",ROUND(H19*$Z$14+H19*$Z$18,2),"") ->  | N19: 0 | T19: =IF(B19="","",IF(B21="","konec","průběh")) ->  | U19: =VLOOKUP(IF(B19="",0,(IF(B19=B17,1000,100)+IF(B19=B21,10,1))),List1!$B$22:$D$26,3,FALSE) -> 5 | V19: =B19 -> 00:00:00 | W19: =IF(V19<>0,B19+F19,"") -> 
C20: Příjezd | V20: =B19 -> 00:00:00 | W20: =IF(V19<>0,B19+F20,"") -> 
H21: Celkem | I21: =SUM(I5:I20) -> 0 | J21: =SUM(J5:J20) -> 0 | K21: =SUM(K5:K20) -> 691 | L21: =IF(E23="ano",0,SUM(L5:L20)) -> 0 | M21: =SUM(M5:M20) -> 0 | N21: =SUM(I21:M21) -> 691
B22: Strava poskytnuta bezplatně | E22: ano | H22: Záloha
B23: Ubytování poskytnuto bezplatně:* | E23: ano | H23: =IF((N21-N22)<0,"Přeplatek (účtovatel vrátí)", "Doplatek (účtovateli bude doplaceno)") -> Doplatek (účtovateli bude doplaceno) | N23: =ABS(CEILING(N21-N22,1)) -> 691
P24: =IF(O28="",1,IF((O27+O28)<=5/24,1,IF((O27+O28)<=12/24,2,IF((O27+O28)<=18/24,3,4)))) -> 4 | Q24: =VLOOKUP((IF((P28+P27)>3,3,(P28+P27))),$AC$12:$AG$16,P24+1,FALSE) -> 150
B25: V - Vlak | C25: SV - služební vozidlo | E25: V - VV - vlastní vozidlo s náhradou výdajů za vlak | K25: Bezplatně poskytnutá strava | P25: počet jídel | Q25: skupina | R25: Celkem | Y25: Přehled EU norem používaných v TP
B26: A - autobus | C26: CV - spolujízda | E26: A - VV - vlastní vozidlo s náhradou výdajů za autobus | K26: Datum | L26: snídaně | M26: oběd | N26: večeře | O26: doba | R26: =SUM(R27:R43) -> 691 | Y26: 80/1268/EHS | Z26: arit.průměr | AA26: 3 údaje v TP
B27: L - letadlo | C27: VV - vlastní vozidlo | E27: L - VV - vlastní vozidlo s náhradou výdajů za letadlo | K27: =IF(AD8<>0,AD8,"") -> 2020-01-02 | L27: ano | O27: =IF(K27<>"",IF(K28<>0,K27+1-AE8,AE9-AE8),"") -> 0.5833333333 | P27: =IF($E$22="ne",0,IF(LEFT(L27,1)="A",1,0)+IF(LEFT(M27,1)="A",1,0)+IF(LEFT(N27,1)="A",1,0)) -> 1 | Q27: =IF(OR(O27<=5/24+1/24/60/60/100,O27=""),1,IF(O27<=12/24,2,IF(O27<=18/24,3,4))) -> 3 | R27: =IF(AND(K29="",(Q7+Q5)<Q24),0,Q5) -> 91 | Y27: 93/116/ES | Z27: třetí údaj
K28: =IF(($AD$8+List1!A2)<=$AD$9,$AD$8+List1!A2,"") -> 2020-01-03 | O28: =IF(K28<>"",IF(K29<>"",1,$AE$9-K28),"") -> 1 | P28: 0 | Q28: =IF(OR(O28<=5/24+1/24/60/60/100,O28=""),1,IF(O28<=12/24,2,IF(O28<=18/24,3,4))) -> 4 | R28: =IF(AND(K29="",(Q7+Q5)<Q24),Q24,Q7) -> 200 | Y28: 1999/100/ES | Z28: třetí údaj
K29: =IF(($AD$8+List1!A3)<=$AD$9,$AD$8+List1!A3,"") -> 2020-01-04 | O29: 1 | P29: 0 | Q29: 4 | R29: =VLOOKUP(P29,$AC$12:$AG$16,Q29+1,FALSE) -> 200 | Y29: 2004/3/ES | Z29: třetí údaj
B30: Zdroj financování (PF UK, grant, jiný zdroj): | F30: Zpráva o výsledku pracovní cesty byla podána dne: | K30: =IF(($AD$8+List1!A4)<=$AD$9,$AD$8+List1!A4,"") -> 2020-01-05 | O30: 0.8333333333 | P30: 0 | Q30: 4 | R30: 200 | Y30: EU 692/2008 | Z30: třetí údaj
K31: =IF(($AD$8+List1!A5)<=$AD$9,$AD$8+List1!A5,"") ->  | P31: 0 | Q31: 1 | R31: 0 | Y31: EU 692/2008A,…F | Z31: třetí údaj
K32: =IF(($AD$8+List1!A6)<=$AD$9,$AD$8+List1!A6,"") ->  | P32: 0 | Q32: 1 | R32: 0 | Y32: EU/566/2011 | Z32: třetí údaj
K33: =IF(($AD$8+List1!A7)<=$AD$9,$AD$8+List1!A7,"") ->  | P33: 0 | Q33: 1 | R33: 0 | Y33: 2007/46/ES | Z33: třetí údaj
B34: Číslo bankovního účtu pro zasílání náhrad účtovateli: | K34: =IF(($AD$8+List1!A8)<=$AD$9,$AD$8+List1!A8,"") ->  | P34: 0 | Q34: 1 | R34: 0 | Y34: EHK 101,R101.00 | Z34: třetí údaj
K35: =IF(($AD$8+List1!A9)<=$AD$9,$AD$8+List1!A9,"") ->  | P35: 0 | Q35: 1 | R35: 0 | Y35: 459/2012/EU | Z35: třetí údaj
K36: =IF(($AD$8+List1!A10)<=$AD$9,$AD$8+List1!A10,"") ->  | P36: 0 | Q36: 1 | R36: 0 | Y36: 630/2012/EU | Z36: třetí údaj
B37: Prohlašuji, že jsem všechny údaje uvedl úplně a správně. | K37: =IF(($AD$8+List1!A11)<=$AD$9,$AD$8+List1!A11,"") ->  | P37: 0 | Q37: 1 | R37: 0 | Y37: EU195/2013 | Z37: třetí údaj
K38: =IF(($AD$8+List1!A12)<=$AD$9,$AD$8+List1!A12,"") ->  | P38: 0 | Q38: 1 | R38: 0 | Y38: 715/2007/ES | Z38: třetí údaj
K39: =IF(($AD$8+List1!A13)<=$AD$9,$AD$8+List1!A13,"") ->  | P39: 0 | Q39: 1 | R39: 0 | Y39: EU136/2014 | Z39: třetí údaj
K40: =IF(($AD$8+List1!A14)<=$AD$9,$AD$8+List1!A14,"") ->  | P40: 0 | Q40: 1 | R40: 0 | Y40: EU2016/646 | Z40: třetí údaj
K41: =IF(($AD$8+List1!A15)<=$AD$9,$AD$8+List1!A15,"") ->  | P41: 0 | Q41: 1 | R41: 0 | Y41: EU2017/1347 | Z41: třetí údaj
B42: Datum a podpis účtovatele | K42: =IF(($AD$8+List1!A16)<=$AD$9,$AD$8+List1!A16,"") ->  | P42: 0 | Q42: 1 | R42: 0 | Y42: EU2015/45 | Z42: třetí údaj
K43: =IF(($AD$8+List1!A17)<=$AD$9,$AD$8+List1!A17,"") ->  | P43: 0 | Q43: 1 | R43: 0 | Y43: jiná norma | Z43: arit.průměr
B47: Se způsobem provedení vyučtování souhlasí:
J50: Podpis přímého nadřízeného nebo řešitele grantu, projektu…
B52: Datum a podpis správce rozpočtu (tajemníka)
B56: Podpis vedoucího ekonom. odd. | J56: Podpis zaměstnance, který kontroloval a upravil vyúčtování (pokladní)

Sheet Vyúčtování
I1: Příloha OD č. 2/2020 | AB1: ="Kurzy ČNB jsou aktualizovány k "&TEXT(AN2,"dd.mm.rrrr") -> Kurzy ČNB jsou aktualizovány k 25.04.2024 | AI1: =60*60*24 -> 86400 | AT1: =IFERROR("Vyúčtování pracovní cesty a zprávu o pracovní cestě je nutné odevzdat nejpozději do " &TEXT(List1!$AC$1,"dd.mm.rrrr")&".","") -> Vyúčtování pracovní cesty a zprávu o pracovní cestě je nutné odevzdat nejpozději do 18.01.2024.
B2: VYÚČTOVÁNÍ ZAHRANIČNÍ PRACOVNÍ CESTY | AN2: =(MAX('Kurzy CNB'!$A$2:$A$446)) -> 2024-04-25
B3: Jméno a příjmení | E3: =T(Příkaz!D5) -> 
B4: Název akce/Účel: | E4: =T(Příkaz!D11) ->  | N4: stát | AK4: Vozidlo
B5: Místo konání akce | E5: =T(Příkaz!D9) ->  | N5: Slovensko | AK5: SPZ
E6: datum | F6: čas | G6: místo | N6: základní sazba zahraničního stravného | AK6: Palivo | AL6: benzin 95 oktanů | AP6: =AP8 -> 0
B7: Zahájení cesty | E7: 2024-01-02 | F7: 07:00:00 | S7: =E7+F7 -> 2024-01-02T07:00:00 | AA7: Neposkytnutí náhrady cestovních výdajů dle čl.15 OD 1/2022 v případě, že byla zaměstnanci poskytnuta náhrada v zahraničí nebo z jiného zdroje | AK7: spotřeba 1 | AL7: 3.3 | AM7: Doplňte kombinovanou spotřebu dle norem EU z TP a ostatní pole ponechte prázdné
B8: Překročení státní hranice/odlet | E8: 2024-01-02 | F8: 07:00:00 | G8: =IF(S8<S7,"překročení hranice nemůže být před začátkem cesty","") ->  | N8: =IFERROR(VLOOKUP(N5,List1!V3:Y180,4,FALSE),"Vyberte") -> 35 | O8: =IFERROR(VLOOKUP(N5,List1!V3:Y180,2,FALSE),"stát") -> EUR | S8: =E8+F8 -> 2024-01-02T07:00:00 | AK8: spotřeba 2 | AM8: Pokud údaj o kombinované spotřebě v technickém průkazu není, vypočte se spotřeba PHM vozidla aritmetickým průměrem ze všech údajů o spotřebě uvedených v technickém průkazu.
B9: Překročení státní hranice/přílet | E9: 2024-01-04 | F9: 23:00:00 | G9: =IF(OR(E7>MAX('Kurzy CNB'!A2:A446),E16>MAX('Kurzy CNB'!A2:A446)),"Začátek cesty nebo datum zálohy je v období mimo načtené kurzy ČNB","") ->  | N9: použit kurz ze dne | S9: =E9+F9 -> 2024-01-04T23:00:00 | AK9: spotřeba 3
B10: Ukončení cesty | E10: 2024-01-04 | F10: 23:00:00 | N10: =IF(AND(E16<>"",E14<>"NE",OR(F16<>"",F17<>"")),E16,E7) -> 2024-01-02 | S10: =E10+F10 -> 2024-01-04T23:00:00 | AK10: spotřeba 4
B11: Strava poskytnuta bezplatně | E11: Ano | G11: Celková vzdálenost v km při použití VV | K11: Poskytnuté náhrady za výdaje: | AA11: nárok | AB11: náhrada | AC11: k vyúčtování | AK11: Průměr - použitá spotřeba | AL11: =ROUND(AVERAGE(AL7:AL10),2) -> 3.3 | AP11: 0 - 5 hod | AQ11: 5 až 12 hod. | AR11: 12 až 18 hod. | AS11: více než 18 hod.
B12: Použitý dopr. prostředek | E12: V | H12: =IF(E12="VV",CEILING(G12*$AL$16+G12*$AL$21,0.01),"") ->  | K12: ubytování | M12: EUR | O12: =IF(N12<>"",IF(M12<>"",(IF(M12="CZK",1,VLOOKUP($N$10,'Kurzy CNB'!$A$1:$AK$315,VLOOKUP(M12,List1!$S$4:$T$36,2,FALSE),TRUE)))*N12/VLOOKUP(M12,List1!$S$3:$U$36,3,FALSE),0),0) -> 0 | AA12: =SUM(I25:I26) -> 0 | AB12: =O12 -> 0 | AC12: =IF((AA12-AB12)<0,0,AA12-AB12) -> 0 | AK12: Cena paliva z dokladu | AM12: CZK | AO12: počet jídel | AP12: 0 | AQ12: I | AR12: II | AS12: III
K13: jízdné | M13: EUR | O13: =IF(N13<>"",IF(M13<>"",(IF(M13="CZK",1,VLOOKUP($N$10,'Kurzy CNB'!$A$1:$AK$315,VLOOKUP(M13,List1!$S$4:$T$36,2,FALSE),TRUE)))*N13/VLOOKUP(M13,List1!$S$3:$U$36,3,FALSE),0),0) -> 0 | AA13: =SUM(I21:I24) -> 0 | AB13: =O13 -> 0 | AC13: =IF((AA13-AB13)<0,0,AA13-AB13) -> 0 | AK13: Cena paliva z dokladu CZK | AL13: =CEILING(IF(AL12<>"",IF(AM12<>"",(IF(AM12="CZK",1,VLOOKUP($N$10,'Kurzy CNB'!$A$1:$AK$315,VLOOKUP(AM12,List1!$S$4:$T$36,2,FALSE),TRUE)))*AL12/VLOOKUP(AM12,List1!$S$3:$U$36,3,FALSE),0),0),0.0001) -> 0 | AO13: 0 | AP13: 0 | AQ13: 149 | AR13: 221 | AS13: 342
B14: Poskytnuta záloha | E14: Ne | G14: částka | H14: měna | I14: kurz ČNB | K14: ostatní | M14: EUR | O14: =IF(N14<>"",IF(M14<>"",(IF(M14="CZK",1,VLOOKUP($N$10,'Kurzy CNB'!$A$1:$AK$315,VLOOKUP(M14,List1!$S$4:$T$36,2,FALSE),TRUE)))*N14/VLOOKUP(M14,List1!$S$3:$U$36,3,FALSE),0),0) -> 0 | AA14: =SUM(I27:I28) -> 0 | AB14: 0 | AC14: 0 | AK14: Náhrady | AO14: 1 | AP14: 0 | AQ14: =AQ13*0.3 -> 44.7 | AR14: =0.65*AR13 -> 143.65 | AS14: =0.75*AS13 -> 256.5
B16: Záloha 1 | D16: vydaná dne | F16: 0 | H16: USD | I16: =IF(OR(E16="",H16="CZK"),1,VLOOKUP(E16,'Kurzy CNB'!$A$1:$AK$315,VLOOKUP(H16,List1!$S$4:$T$36,2,FALSE),FALSE)) -> 1 | J16: =CEILING(I16*F16,0.001) -> 0 | M16: Poskytnuté náhrady za stravné | AK16: amortizace za km | AL16: 5.6 | AO16: 2 | AP16: 0 | AQ16: 0 | AR16: =0.3*AR13 -> 66.3 | AS16: =0.5*AS13 -> 171
B17: Záloha 2 | D17: vydaná dne | E17: =E16 -> 00:00:00 | F17: 0 | H17: CZK | I17: =IF(OR(E17="",H17="CZK",H17=""),1,VLOOKUP(E17,'Kurzy CNB'!$A$1:$AK$315,VLOOKUP(H17,List1!$S$4:$T$36,2,FALSE),TRUE)) -> 1 | J17: =CEILING(I17*F17,0.001) -> 0 | M17: EUR | O17: =IF(N17<>"",IF(M17<>"",(IF(M17="CZK",1,VLOOKUP($N$10,'Kurzy CNB'!$A$1:$AK$315,VLOOKUP(M17,List1!$S$4:$T$36,2,FALSE),TRUE)))*N17/VLOOKUP(M17,List1!$S$3:$U$36,3,FALSE),0),0) -> 0 | AA17: =SUM(O22:O23) -> 2304.0979 | AB17: =O17 -> 0 | AC17: =IF((AA17-AB17)<0,0,AA17-AB17) -> 2304.0979 | AK17: benzin 95 oktanů | AL17: 38.2 | AO17: 3 | AP17: 0 | AQ17: 0 | AR17: 0 | AS17: =0.25*AS13 -> 85.5
AB18: Celkem | AC18: =AC12+AC13+AC14+AC17 -> 2304.0979 | AK18: benzin 98 oktanů | AL18: 42.6
B19: VYÚČTOVÁNÍ | AK19: nafta | AL19: 38.7
D20: Popis | F20: měna | G20: částka | H20: měna | I20: částka | K20: Stravné | AK20: elektřina | AL20: 7.7
B21: Jízdní výdaje | D21: Vlastní vozidlo - VV | F21: CZK | G21: =H12 ->  | H21: CZK | I21: =G21 ->  | K21: měna | M21: částka | N21: měna | O21: částka | AK21: náhrada za km paliva | AL21: =ROUND(IF(AL13=0,(VLOOKUP(AL6,AK17:AL20,2,FALSE)),AL13)*AL11/100,4) -> 1.2606 | AM21: =IF(AL13<>"","použita cena z dokladu","použita cena z vyhlášky") -> použita cena z dokladu
F22: CZK | H22: CZK | I22: =IF(G22<>"",IF(F22<>"",(IF(F22="CZK",1,VLOOKUP($N$10,'Kurzy CNB'!$A$1:$AK$315,VLOOKUP(F22,List1!$S$4:$T$36,2,FALSE),TRUE)))*G22/VLOOKUP(F22,List1!$S$3:$U$36,3,FALSE),""),"") ->  | K22: CZK | M22: =CEILING(SUM(AA27:AA59),0.01) -> 0 | N22: CZK | O22: =M22 -> 0
F23: EUR | H23: CZK | I23: =IF(G23<>"",IF(F23<>"",(IF(F23="CZK",1,VLOOKUP($N$10,'Kurzy CNB'!$A$1:$AK$315,VLOOKUP(F23,List1!$S$4:$T$36,2,FALSE),TRUE)))*G23/VLOOKUP(F23,List1!$S$3:$U$36,3,FALSE),""),"") ->  | K23: =O8 -> EUR | M23: =IFERROR(CEILING(SUM(AB27:AB59),0.01),0) -> 93.34 | N23: CZK | O23: =IFERROR(IF(M23<>"",VLOOKUP($N$10,'Kurzy CNB'!$A$1:$AK$315,VLOOKUP(K23,List1!$S$4:$T$36,2,FALSE),TRUE))*M23/VLOOKUP(K23,List1!$S$3:$U$36,3,FALSE),0) -> 2304.0979 | AP23: zahra
H24: CZK | I24: =IF(G24<>"",IF(F24<>"",(IF(F24="CZK",1,VLOOKUP($N$10,'Kurzy CNB'!$A$1:$AK$315,VLOOKUP(F24,List1!$S$4:$T$36,2,FALSE),TRUE)))*G24/VLOOKUP(F24,List1!$S$3:$U$36,3,FALSE),""),"") -> 
B25: Výdaje za ubytování | F25: EUR | H25: CZK | I25: =IF(G25<>"",IF(F25<>"",(IF(F25="CZK",1,VLOOKUP($N$10,'Kurzy CNB'!$A$1:$AK$315,VLOOKUP(F25,List1!$S$4:$T$36,2,FALSE),TRUE)))*G25/VLOOKUP(F25,List1!$S$3:$U$36,3,FALSE),""),"") ->  | K25: Bezplatně poskytnutá strava | W25: počet jídel | AA25: CZK | AB25: =O8 -> EUR | AP25: 0 - 1 hod | AQ25: 1 až 12 hod. | AR25: 12 až 18 hod. | AS25: více než 18 hod.
H26: CZK | I26: =IF(G26<>"",IF(F26<>"",(IF(F26="CZK",1,VLOOKUP($N$10,'Kurzy CNB'!$A$1:$AK$315,VLOOKUP(F26,List1!$S$4:$T$36,2,FALSE),TRUE)))*G26/VLOOKUP(F26,List1!$S$3:$U$36,3,FALSE),""),"") ->  | K26: Datum | M26: snídaně | N26: oběd | O26: večeře | P26: doba | Q26: začátek zahr | R26: konec zahr | S26: doba zahr | T26: doba CR | U26: přep zahr | V26: přep CR | X26: kod zahr | Y26: kod tuz | AA26: stravne CR | AB26: stravne zahr | AO26: počet jídel | AP26: 0 | AQ26: I | AR26: II | AS26: III
B27: Ostatní výdaje | F27: EUR | H27: CZK | I27: =IF(G27<>"",IF(F27<>"",(IF(F27="CZK",1,VLOOKUP($N$10,'Kurzy CNB'!$A$1:$AK$315,VLOOKUP(F27,List1!$S$4:$T$36,2,FALSE),TRUE)))*G27/VLOOKUP(F27,List1!$S$3:$U$36,3,FALSE),""),"") ->  | K27: =IF(E7<>0,E7,"") -> 2024-01-02 | P27: =IF(K27<>"",IF(K28<>"",K27+1-S7,S10-S7),"") -> 0.7083333333 | Q27: =IF(OR($E$8>K27,$E$9<K27),"",IF(K27=$E$8,$S$8,K27)) -> 2024-01-02T07:00:00 | R27: =IF(OR($E$8>K27,$E$9<K27),"",IF(K27=$E$9,$S$9,K27+1)) -> 2024-01-03 | S27: =IF(Q27="","",R27-Q27) -> 0.7083333333 | T27: =IF(P27<>"",IF(S27<>"",P27-S27,P27),"") -> 0 | U27: =IF(T27<5/24,S27,IF(S27<=(5/24+0.0000001),"",S27)) -> 0.7083333333 | V27: =IF(T27>=5/24,IF(S27<=(5/24+0.0000001),T27+S27,T27),T27) -> 0 | W27: =IF($E$11="ne",0,IF(LEFT(M27,1)="A",1,0)+IF(LEFT(N27,1)="A",1,0)+IF(LEFT(O27,1)="A",1,0)) -> 0 | X27: =IF(U27<>"",(IF(U27<(1/24-0.0000001),1,(IF(U27<=12/24,2,IF(U27<=18/24,3,4))))),"") -> 3 | Y27: =IF(V27<>"",(IF(V27<5/24,1,(IF(V27<=12/24,2,IF(V27<=18/24,3,4))))),"") -> 1 | AA27: =IF(Y27<>"",IF(X27="",VLOOKUP(W27,$AO$12:$AS$17,Y27+1,FALSE),VLOOKUP(0,$AO$12:$AS$17,Y27+1)),"") -> 0 | AB27: =IF(X27="","",IF(Y27=1,VLOOKUP(W27,$AO$26:$AS$30,X27+1,FALSE),VLOOKUP(W27,$AO$26:$AS$30,3,FALSE))) -> 23.33333333 | AO27: 0 | AP27: 0 | AQ27: =AS27/3 -> 11.66666667 | AR27: =AS27*2/3 -> 23.33333333 | AS27: =N8 -> 35
H28: CZK | I28: =IF(G28<>"",IF(F28<>"",(IF(F28="CZK",1,VLOOKUP($N$10,'Kurzy CNB'!$A$1:$AK$315,VLOOKUP(F28,List1!$S$4:$T$36,2,FALSE),TRUE)))*G28/VLOOKUP(F28,List1!$S$3:$U$36,3,FALSE),""),"") ->  | K28: =IF(($E$7+List1!A2)<=$E$10,$E$7+List1!A2,"") -> 2024-01-03 | P28: =IF(K28<>"",IF(K29<>"",1,$S$10-K28),"") -> 1 | Q28: =IF(OR($E$8>K28,$E$9<K28),"",IF(K28=$E$8,$S$8,K28)) -> 2024-01-03 | R28: =IF(OR($E$8>K28,$E$9<K28),"",IF(K28=$E$9,$S$9,K28+1)) -> 2024-01-04 | S28: =IF(Q28="","",R28-Q28) -> 1 | T28: 0 | U28: =IF(T28<5/24,S28,IF(S28<=(5/24+0.0000001),"",S28)) -> 1 | V28: =IF(T28>=5/24,IF(S28<=(5/24+0.0000001),T28+S28,T28),T28) -> 0 | W28: 0 | X28: =IF(U28<>"",(IF(U28<(1/24-0.0000001),1,(IF(U28<=12/24,2,IF(U28<=18/24,3,4))))),"") -> 4 | Y28: =IF(V28<>"",(IF(V28<5/24,1,(IF(V28<=12/24,2,IF(V28<=18/24,3,4))))),"") -> 1 | AA28: 0 | AB28: =IF(X28="","",IF(Y28=1,VLOOKUP(W28,$AO$26:$AS$30,X28+1,FALSE),VLOOKUP(W28,$AO$26:$AS$30,3,FALSE))) -> 35 | AO28: 1 | AP28: 0 | AQ28: =AQ27*0.3 -> 3.5 | AR28: =0.65*AR27 -> 15.16666667 | AS28: =0.75*AS27 -> 26.25
B29: Celkem (včetně stravného) | H29: CZK | I29: =AC12+AC13+AC14+AC17 -> 2304.0979 | K29: =IF(($E$7+List1!A3)<=$E$10,$E$7+List1!A3,"") -> 2024-01-04 | P29: 0.9583333333 | Q29: 2024-01-04 | R29: =IF(OR($E$8>K29,$E$9<K29),"",IF(K29=$E$9,$S$9,K29+1)) -> 2024-01-04T23:00:00 | S29: 0.9583333333 | T29: 0 | U29: =IF(T29<5/24,S29,IF(S29<=(5/24+0.0000001),"",S29)) -> 0.9583333333 | V29: 0 | W29: 0 | X29: 4 | Y29: 1 | AA29: 0 | AB29: 35 | AK29: Přehled EU norem používaných v TP | AO29: 2 | AP29: 0 | AQ29: 0 | AR29: =0.3*AR27 -> 7 | AS29: =0.5*AS27 -> 17.5
B30: Záloha | H30: CZK | I30: =IF(E14="ne",0,CEILING(J16+J17,0.01)) -> 0 | K30: =IF(($E$7+List1!A4)<=$E$10,$E$7+List1!A4,"") ->  | W30: 0 | AK30: 80/1268/EHS | AL30: arit.průměr | AM30: 3 údaje v TP | AO30: 3 | AP30: 0 | AQ30: 0 | AR30: 0 | AS30: =0.25*AS27 -> 8.75
B31: =IF(I31<0,"Přeplatek (zaměstnanec vrátí)", "Doplatek (zaměstnanci bude doplaceno)") -> Doplatek (zaměstnanci bude doplaceno) | H31: CZK | I31: =(I29-I30)/(IF(H31="CZK",1,VLOOKUP($N$10,'Kurzy CNB'!$A$1:$AK$315,VLOOKUP(H31,List1!$S$4:$T$36,2,FALSE),TRUE))/VLOOKUP(H31,List1!$S$3:$U$36,3,FALSE)) -> 2304.0979 | K31: =IF(($E$7+List1!A5)<=$E$10,$E$7+List1!A5,"") ->  | W31: 0 | AK31: 93/116/ES | AL31: třetí údaj
K32: =IF(($E$7+List1!A6)<=$E$10,$E$7+List1!A6,"") ->  | W32: 0 | AK32: 1999/100/ES | AL32: třetí údaj
B33: Zdroj financování: | K33: =IF(($E$7+List1!A7)<=$E$10,$E$7+List1!A7,"") ->  | W33: 0 | AK33: 2004/3/ES | AL33: třetí údaj
B34: ="jízdné: "&Příkaz!D18&", ubytování: "&Příkaz!D26&", stravné: "&Příkaz!D28&", vedl. výdaje: "&Příkaz!D30 -> jízdné: , ubytování: , stravné: , vedl. výdaje: | K34: =IF(($E$7+List1!A8)<=$E$10,$E$7+List1!A8,"") ->  | W34: 0 | AK34: EU 692/2008 | AL34: třetí údaj
K35: =IF(($E$7+List1!A9)<=$E$10,$E$7+List1!A9,"") ->  | W35: 0 | AK35: EU 692/2008A,…F | AL35: třetí údaj
K36: =IF(($E$7+List1!A10)<=$E$10,$E$7+List1!A10,"") ->  | W36: 0 | AK36: EU/566/2011 | AL36: třetí údaj
K37: =IF(($E$7+List1!A11)<=$E$10,$E$7+List1!A11,"") ->  | W37: 0 | AK37: 2007/46/ES | AL37: třetí údaj
B38: Číslo bankovního účtu pro zasílání náhrad zaměstnanci: | K38: =IF(($E$7+List1!A12)<=$E$10,$E$7+List1!A12,"") ->  | W38: 0 | AK38: EHK 101,R101.00 | AL38: třetí údaj
K39: =IF(($E$7+List1!A13)<=$E$10,$E$7+List1!A13,"") ->  | W39: 0 | AK39: 459/2012/EU | AL39: třetí údaj
K40: =IF(($E$7+List1!A14)<=$E$10,$E$7+List1!A14,"") ->  | W40: 0 | AK40: 630/2012/EU | AL40: třetí údaj
K41: =IF(($E$7+List1!A15)<=$E$10,$E$7+List1!A15,"") ->  | W41: 0 | AK41: EU195/2013 | AL41: třetí údaj
B42: Prohlašuji, že jsem všechny údaje uvedl úplně, a že je zpráva ze zahraniční pracovní cesty přiložena. | K42: =IF(($E$7+List1!A16)<=$E$10,$E$7+List1!A16,"") ->  | W42: 0 | AK42: 715/2007/ES | AL42: třetí údaj
K43: =IF(($E$7+List1!A17)<=$E$10,$E$7+List1!A17,"") ->  | W43: 0 | AK43: EU136/2014 | AL43: třetí údaj
K44: =IF(($E$7+List1!A18)<=$E$10,$E$7+List1!A18,"") ->  | U44: =IF(T44<5/24,S44,IF(S44<=(5/24+0.0000001),"",S44)) ->  | W44: 0 | AK44: EU2016/646 | AL44: třetí údaj
K45: =IF(($E$7+List1!A19)<=$E$10,$E$7+List1!A19,"") ->  | U45: =IF(T45<5/24,S45,IF(S45<=(5/24+0.0000001),"",S45)) ->  | W45: 0 | AK45: EU2017/1347 | AL45: třetí údaj
K46: =IF(($E$7+List1!A20)<=$E$10,$E$7+List1!A20,"") ->  | U46: =IF(T46<5/24,S46,IF(S46<=(5/24+0.0000001),"",S46)) ->  | W46: 0 | AK46: EU2015/45 | AL46: třetí údaj
B47: Datum a podpis zaměstnance | K47: =IF(($E$7+List1!A21)<=$E$10,$E$7+List1!A21,"") ->  | W47: 0 | AK47: jiná norma | AL47: arit.průměr
K48: =IF(($E$7+List1!A22)<=$E$10,$E$7+List1!A22,"") ->  | W48: 0
K49: =IF(($E$7+List1!A23)<=$E$10,$E$7+List1!A23,"") ->  | W49: 0
K50: =IF(($E$7+List1!A24)<=$E$10,$E$7+List1!A24,"") ->  | W50: 0
B51: Podpis řešitele grantu nebo projektu | F51: Podpis vedoucího zahraničního oddělení | K51: =IF(($E$7+List1!A25)<=$E$10,$E$7+List1!A25,"") ->  | W51: 0
K52: =IF(($E$7+List1!A26)<=$E$10,$E$7+List1!A26,"") ->  | W52: 0
K53: =IF(($E$7+List1!A27)<=$E$10,$E$7+List1!A27,"") ->  | W53: 0
K54: =IF(($E$7+List1!A28)<=$E$10,$E$7+List1!A28,"") ->  | W54: 0
K55: =IF(($E$7+List1!A29)<=$E$10,$E$7+List1!A29,"") ->  | W55: 0
B56: Podpis přímého nadřízeného | F56: Podpis vedoucí ekonomického oddělení | K56: =IF(($E$7+List1!A30)<=$E$10,$E$7+List1!A30,"") ->  | P56: =IF(K56<>"",IF(K57<>"",1,$S$10-K56),"") ->  | Q56: =IF(OR($E$8>K56,$E$9<K56),"",IF(K56=$E$8,$S$8,K56)) ->  | R56: =IF(OR($E$8>K56,$E$9<K56),"",IF(K56=$E$9,$S$9,K56+1)) ->  | S56: =IF(Q56="","",R56-Q56) ->  | T56: =IF(P56<>"",IF(S56<>"",P56-S56,P56),"") ->  | U56: =IF(T56<5/24,S56,IF(S56<=(5/24+0.0000001),"",S56)) ->  | V56: =IF(T56>=5/24,IF(S56<=(5/24+0.0000001),T56+S56,T56),T56) ->  | W56: =IF($E$11="ne",0,IF(LEFT(M56,1)="A",1,0)+IF(LEFT(N56,1)="A",1,0)+IF(LEFT(O56,1)="A",1,0)) -> 0 | X56: =IF(U56<>"",(IF(U56<(1/24-0.0000001),1,(IF(U56<=12/24,2,IF(U56<=18/24,3,4))))),"") ->  | Y56: =IF(V56<>"",(IF(V56<5/24,1,(IF(V56<=12/24,2,IF(V56<=18/24,3,4))))),"") ->  | AA56: =IF(Y56<>"",IF(X56="",VLOOKUP(W56,$AO$12:$AS$17,Y56+1,FALSE),VLOOKUP(0,$AO$12:$AS$17,Y56+1)),"") ->  | AB56: =IF(X56="","",IF(Y56=1,VLOOKUP(W56,$AO$26:$AS$30,X56+1,FALSE),VLOOKUP(W56,$AO$26:$AS$30,3,FALSE))) -> 
K57: =IF(($E$7+List1!A31)<=$E$10,$E$7+List1!A31,"") ->  | W57: 0
K58: =IF(($E$7+List1!A32)<=$E$10,$E$7+List1!A32,"") ->  | W58: 0
B60: Podpis tajemníka (správce rozpočtu) | F60: Podpis pracovníka ekonomického oddělení, který kontroloval a upravil vyúčtování

Sheet Zpráva o cestě
K1: Příloha OD č. 2/2020
B2: ZPRÁVA O PRŮBĚHU A VÝSLEDCÍCH PRACOVNÍ CESTY | U2: =IFERROR("Vyúčtování pracovní cesty a zprávu o pracovní cestě je nutné odevzdat nejpozději do " &TEXT(List1!$AC$1,"dd.mm.rrrr")&".","") -> Vyúčtování pracovní cesty a zprávu o pracovní cestě je nutné odevzdat nejpozději do 18.01.2024.
B4: Jméno a příjmení: | F4: =T(Příkaz!D5) -> 
B6: Pracoviště: | F6: =T(Příkaz!L5) -> 
B8: Datum a místo zahájení cesty: | F8: =T(Příkaz!F7) ->  | I8: =T(Příkaz!J7) -> 
B10: Místo konání: | F10: =T(Příkaz!D9) -> 
B12: Účel: | F12: =T(Příkaz!D11) -> 
B14: Datum a místo ukončení cesty: | F14: =T(Příkaz!F15) ->  | I14: =T(Příkaz!J15) -> 
B16: Počet dní: | F16: =List1!P2 -> 3
B18: Způsob dopravy: | H18: =Příkaz!G20 -> A | K18: =Příkaz!I20 -> Autobus
B21: Průběh cesty:
B32: Výsledek pracovní cesty (přínos pracovní cesty):
B51: V Praze dne | J51: Podpis zaměstnance

Sheet Kurzy CNB
A1: Datum | B1: 1 AUD | C1: 1 BGN | D1: 1 BRL | E1: 1 CAD | F1: 1 CHF | G1: 1 CNY | H1: 1 DKK | I1: 1 EUR | J1: 1 GBP | K1: 1 HKD | L1: 100 HUF | M1: 1000 IDR | N1: 1 ILS | O1: 100 INR | P1: 100 ISK | Q1: 100 JPY | R1: 100 KRW | S1: 1 MXN | T1: 1 MYR | U1: 1 NOK | V1: 1 NZD | W1: 100 PHP | X1: 1 PLN | Y1: 1 RON | Z1: 1 SEK | AA1: 1 SGD | AB1: 100 THB | AC1: 100 TRY | AD1: 1 USD | AE1: 1 XDR | AF1: 1 ZAR
A2: 2024-01-02 | B2: 15.278 | C2: 12.621 | D2: 4.609 | E2: 16.938 | F2: 26.524 | G2: 3.154 | H2: 3.311 | I2: 24.685 | J2: 28.483 | K2: 2.883 | L2: 6.46 | M2: 1.456 | N2: 6.219 | O2: 27.036 | P2: 16.38 | Q2: 15.862 | R2: 1.715 | S2: 1.322 | T2: 4.894 | U2: 2.189 | V2: 14.125 | W2: 40.471 | X2: 5.651 | Y2: 4.966 | Z2: 2.213 | AA2: 16.986 | AB2: 65.711 | AC2: 75.776 | AD2: 22.526 | AE2: 30.222 | AF2: 1.214
A3: 2024-01-03 | B3: 15.201 | C3: 12.616 | D3: 4.584 | E3: 16.932 | F3: 26.473 | G3: 3.162 | H3: 3.309 | I3: 24.675 | J3: 28.539 | K3: 2.894 | L3: 6.48 | M3: 1.46 | N3: 6.196 | O3: 27.127 | P3: 16.374 | Q3: 15.809 | R3: 1.723 | S3: 1.322 | T3: 4.88 | U3: 2.18 | V3: 14.09 | W3: 40.655 | X3: 5.654 | Y3: 4.962 | Z3: 2.205 | AA3: 17.016 | AB3: 65.624 | AC3: 75.891 | AD3: 22.6 | AE3: 30.267 | AF3: 1.203
A4: 2024-01-04 | B4: 15.137 | C4: 12.602 | D4: 4.585 | E4: 16.88 | F4: 26.455 | G4: 3.149 | H4: 3.305 | I4: 24.65 | J4: 28.561 | K4: 2.883 | L4: 6.507 | M4: 1.453 | N4: 6.168 | O4: 27.045 | P4: 16.379 | Q4: 15.603 | R4: 1.719 | S4: 1.324 | T4: 4.858 | U4: 2.184 | V4: 14.057 | W4: 40.536 | X4: 5.672 | Y4: 4.956 | Z4: 2.201 | AA4: 16.945 | AB4: 65.298 | AC4: 75.632 | AD4: 22.513 | AE4: 30.081 | AF4: 1.206
A5: 2024-01-05 | B5: 15.059 | C5: 12.578 | D5: 4.583 | E5: 16.853 | F5: 26.399 | G5: 3.148 | H5: 3.298 | I5: 24.6 | J5: 28.534 | K5: 2.884 | L5: 6.507 | M5: 1.452 | N5: 6.113 | O5: 27.088 | P5: 16.346 | Q5: 15.521 | R5: 1.709 | S5: 1.323 | T5: 4.84 | U5: 2.175 | V5: 14.007 | W5: 40.521 | X5: 5.646 | Y5: 4.946 | Z5: 2.19 | AA5: 16.923 | AB5: 64.743 | AC5: 75.478 | AD5: 22.523 | AE5: 30.109 | AF5: 1.197
A6: 2024-01-08 | B6: 14.951 | C6: 12.517 | D6: 4.57 | E6: 16.712 | F6: 26.31 | G6: 3.123 | H6: 3.281 | I6: 24.48 | J6: 28.423 | K6: 2.865 | L6: 6.484 | M6: 1.441 | N6: 6.021 | O6: 26.91 | P6: 16.244 | Q6: 15.476 | R6: 1.694 | S6: 1.324 | T6: 4.809 | U6: 2.155 | V6: 13.905 | W6: 40.191 | X6: 5.633 | Y6: 4.923 | Z6: 2.184 | AA6: 16.802 | AB6: 63.842 | AC6: 74.818 | AD6: 22.366 | AE6: 29.848 | AF6: 1.194
A7: 2024-01-09 | B7: 15.052 | C7: 12.578 | D7: 4.595 | E7: 16.829 | F7: 26.419 | G7: 3.137 | H7: 3.299 | I7: 24.6 | J7: 28.616 | K7: 2.876 | L7: 6.493 | M7: 1.448 | N7: 6.02 | O7: 27.04 | P7: 16.346 | Q7: 15.6 | R7: 1.705 | S7: 1.332 | T7: 4.839 | U7: 2.175 | V7: 14.031 | W7: 40.1 | X7: 5.659 | Y7: 4.948 | Z7: 2.193 | AA7: 16.894 | AB7: 64.294 | AC7: 75.058 | AD7: 22.472 | AE7: 30.024 | AF7: 1.204
A8: 2024-01-10 | B8: 15.037 | C8: 12.558 | D8: 4.589 | E8: 16.762 | F8: 26.317 | G8: 3.129 | H8: 3.293 | I8: 24.56 | J8: 28.563 | K8: 2.868 | L8: 6.492 | M8: 1.44 | N8: 5.961 | O8: 27.009 | P8: 16.362 | Q8: 15.445 | R8: 1.702 | S8: 1.32 | T8: 4.832 | U8: 2.174 | V8: 13.981 | W8: 39.856 | X8: 5.659 | Y8: 4.939 | Z8: 2.193 | AA8: 16.849 | AB8: 64.072 | AC8: 74.824 | AD8: 22.427 | AE8: 29.965 | AF8: 1.203
A9: 2024-01-11 | B9: 15.061 | C9: 12.606 | D9: 4.599 | E9: 16.801 | F9: 26.4 | G9: 3.135 | H9: 3.306 | I9: 24.655 | J9: 28.613 | K9: 2.87 | L9: 6.508 | M9: 1.443 | N9: 6.003 | O9: 27.031 | P9: 16.426 | Q9: 15.436 | R9: 1.704 | S9: 1.321 | T9: 4.83 | U9: 2.177 | V9: 14.021 | W9: 39.998 | X9: 5.665 | Y9: 4.958 | Z9: 2.202 | AA9: 16.886 | AB9: 64.106 | AC9: 74.82 | AD9: 22.44 | AE9: 29.981 | AF9: 1.206
A10: 2024-01-12 | B10: 15.069 | C10: 12.62 | D10: 4.638 | E10: 16.859 | F10: 26.397 | G10: 3.146 | H10: 3.311 | I10: 24.685 | J10: 28.72 | K10: 2.883 | L10: 6.507 | M10: 1.45 | N10: 6.031 | O10: 27.199 | P10: 16.446 | Q10: 15.509 | R10: 1.715 | S10: 1.335 | T10: 4.853 | U10: 2.188 | V10: 14.06 | W10: 40.321 | X10: 5.658 | Y10: 4.963 | Z10: 2.191 | AA10: 16.921 | AB10: 64.208 | AC10: 74.942 | AD10: 22.554 | AE10: 30.169 | AF10: 1.207
A11: 2024-01-15 | B11: 15.022 | C11: 12.637 | D11: 4.632 | E11: 16.819 | F11: 26.427 | G11: 3.147 | H11: 3.314 | I11: 24.715 | J11: 28.709 | K11: 2.887 | L11: 6.509 | M11: 1.452 | N11: 6.017 | O11: 27.25 | P11: 16.51 | Q11: 15.479 | R11: 1.708 | S11: 1.337 | T11: 4.835 | U11: 2.185 | V11: 13.976 | W11: 40.464 | X11: 5.665 | Y11: 4.968 | Z11: 2.192 | AA11: 16.925 | AB11: 64.558 | AC11: 75.014 | AD11: 22.579 | AE11: 30.167 | AF11: 1.21
A12: 2024-01-16 | B12: 14.997 | C12: 12.635 | D12: 4.642 | E12: 16.863 | F12: 26.389 | G12: 3.16 | H12: 3.313 | I12: 24.71 | J12: 28.718 | K12: 2.903 | L12: 6.515 | M12: 1.457 | N12: 6.031 | O12: 27.339 | P12: 16.551 | Q12: 15.482 | R12: 1.698 | S12: 1.333 | T12: 4.842 | U12: 2.18 | V12: 13.984 | W12: 40.571 | X12: 5.633 | Y12: 4.966 | Z12: 2.182 | AA12: 16.94 | AB12: 64.181 | AC12: 75.466 | AD12: 22.72 | AE12: 30.355 | AF12: 1.202
A13: 2024-01-17 | B13: 14.922 | C13: 12.657 | D13: 4.616 | E13: 16.841 | F13: 26.315 | G13: 3.163 | H13: 3.319 | I13: 24.755 | J13: 28.835 | K13: 2.909 | L13: 6.504 | M13: 1.455 | N13: 6.015 | O13: 27.373 | P13: 16.559 | Q13: 15.409 | R13: 1.692 | S13: 1.316 | T13: 4.825 | U13: 2.164 | V13: 13.92 | W13: 40.705 | X13: 5.627 | Y13: 4.975 | Z13: 2.174 | AA13: 16.939 | AB13: 64.085 | AC13: 75.52 | AD13: 22.76 | AE13: 30.309 | AF13: 1.194
A14: 2024-01-18 | B14: 14.928 | C14: 12.652 | D14: 4.622 | E14: 16.856 | F14: 26.24 | G14: 3.164 | H14: 3.318 | I14: 24.745 | J14: 28.856 | K14: 2.91 | L14: 6.476 | M14: 1.457 | N14: 6.039 | O14: 27.365 | P14: 16.552 | Q14: 15.385 | R14: 1.7 | S14: 1.325 | T14: 4.824 | U14: 2.162 | V14: 13.904 | W14: 40.756 | X14: 5.624 | Y14: 4.971 | Z14: 2.178 | AA14: 16.929 | AB14: 63.943 | AC14: 75.49 | AD14: 22.758 | AE14: 30.286 | AF14: 1.202
A15: 2024-01-19 | B15: 15.04 | C15: 12.686 | D15: 4.644 | E15: 16.932 | F15: 26.235 | G15: 3.17 | H15: 3.327 | I15: 24.81 | J15: 28.906 | K15: 2.915 | L15: 6.501 | M15: 1.46 | N15: 6.094 | O15: 27.435 | P15: 16.662 | Q15: 15.396 | R15: 1.709 | S15: 1.332 | T15: 4.832 | U15: 2.175 | V15: 13.944 | W15: 40.709 | X15: 5.69 | Y15: 4.984 | Z15: 2.18 | AA15: 16.998 | AB15: 64.287 | AC15: 75.491 | AD15: 22.793 | AE15: 30.341 | AF15: 1.2
A16: 2024-01-22 | B16: 14.995 | C16: 12.661 | D16: 4.606 | E16: 16.941 | F16: 26.188 | G16: 3.162 | H16: 3.32 | I16: 24.765 | J16: 28.937 | K16: 2.91 | L16: 6.454 | M16: 1.455 | N16: 6.041 | O16: 27.366 | P16: 16.654 | Q16: 15.387 | R16: 1.698 | S16: 1.333 | T16: 4.813 | U16: 2.164 | V16: 13.917 | W16: 40.433 | X16: 5.675 | Y16: 4.975 | Z16: 2.18 | AA16: 16.96 | AB16: 63.844 | AC16: 75.223 | AD16: 22.749 | AE16: 30.284 | AF16: 1.186
A17: 2024-01-23 | B17: 15.062 | C17: 12.698 | D17: 4.603 | E17: 16.962 | F17: 26.297 | G17: 3.188 | H17: 3.33 | I17: 24.835 | J17: 29.052 | K17: 2.921 | L17: 6.45 | M17: 1.462 | N17: 6.067 | O17: 27.487 | P17: 16.701 | Q17: 15.436 | R17: 1.708 | S17: 1.325 | T17: 4.834 | U17: 2.173 | V17: 13.927 | W17: 40.657 | X17: 5.667 | Y17: 4.99 | Z17: 2.189 | AA17: 17.052 | AB17: 63.99 | AC17: 75.458 | AD17: 22.849 | AE17: 30.424 | AF17: 1.2
A18: 2024-01-24 | B18: 15.011 | C18: 12.672 | D18: 4.626 | E18: 16.895 | F18: 26.335 | G18: 3.178 | H18: 3.324 | I18: 24.785 | J18: 28.979 | K18: 2.907 | L18: 6.43 | M18: 1.447 | N18: 6.119 | O18: 27.35 | P18: 16.758 | Q18: 15.453 | R18: 1.705 | S18: 1.322 | T18: 4.803 | U18: 2.17 | V18: 13.938 | W18: 40.395 | X18: 5.669 | Y18: 4.98 | Z18: 2.182 | AA18: 16.996 | AB18: 63.842 | AC18: 75.302 | AD18: 22.726 | AE18: 30.252 | AF18: 1.207
A19: 2024-01-25 | B19: 14.974 | C19: 12.66 | D19: 4.615 | E19: 16.828 | F19: 26.275 | G19: 3.171 | H19: 3.321 | I19: 24.76 | J19: 28.942 | K19: 2.908 | L19: 6.429 | M19: 1.436 | N19: 6.142 | O19: 27.346 | P19: 16.718 | Q19: 15.392 | R19: 1.701 | S19: 1.319 | T19: 4.804 | U19: 2.172 | V19: 13.909 | W19: 40.223 | X19: 5.656 | Y19: 4.975 | Z19: 2.181 | AA19: 16.969 | AB19: 63.597 | AC19: 75.056 | AD19: 22.73 | AE19: 30.302 | AF19: 1.202
A20: 2024-01-26 | B20: 15.011 | C20: 12.649 | D20: 4.638 | E20: 16.939 | F20: 26.331 | G20: 3.171 | H20: 3.319 | I20: 24.74 | J20: 28.991 | K20: 2.912 | L20: 6.395 | M20: 1.438 | N20: 6.175 | O20: 27.37 | P20: 16.66 | Q20: 15.401 | R20: 1.704 | S20: 1.326 | T20: 4.813 | U20: 2.185 | V20: 13.901 | W20: 40.397 | X20: 5.652 | Y20: 4.971 | Z20: 2.186 | AA20: 16.977 | AB20: 63.958 | AC20: 75.073 | AD20: 22.752 | AE20: 30.323 | AF20: 1.211
A21: 2024-01-29 | B21: 15.137 | C21: 12.687 | D21: 4.672 | E21: 17.068 | F21: 26.575 | G21: 3.195 | H21: 3.329 | I21: 24.815 | J21: 29.113 | K21: 2.936 | L21: 6.362 | M21: 1.451 | N21: 6.227 | O21: 27.579 | P21: 16.71 | Q21: 15.498 | R21: 1.718 | S21: 1.337 | T21: 4.845 | U21: 2.195 | V21: 14.024 | W21: 40.657 | X21: 5.681 | Y21: 4.986 | Z21: 2.185 | AA21: 17.099 | AB21: 64.479 | AC21: 75.564 | AD21: 22.934 | AE21: 30.542 | AF21: 1.222
A22: 2024-01-30 | B22: 15.089 | C22: 12.697 | D22: 4.625 | E22: 17.051 | F22: 26.522 | G22: 3.191 | H22: 3.332 | I22: 24.835 | J22: 29.016 | K22: 2.931 | L22: 6.414 | M22: 1.452 | N22: 6.278 | O22: 27.558 | P22: 16.746 | Q22: 15.526 | R22: 1.721 | S22: 1.33 | T22: 4.846 | U22: 2.19 | V22: 14.012 | W22: 40.616 | X22: 5.693 | Y22: 4.99 | Z22: 2.198 | AA22: 17.093 | AB22: 64.703 | AC22: 75.5 | AD22: 22.907 | AE22: 30.448 | AF22: 1.212
A23: 2024-01-31 | B23: 15.11 | C23: 12.724 | D23: 4.626 | E23: 17.082 | F23: 26.613 | G23: 3.196 | H23: 3.338 | I23: 24.885 | J23: 29.133 | K23: 2.933 | L23: 6.467 | M23: 1.453 | N23: 6.3 | O23: 27.617 | P23: 16.78 | Q23: 15.528 | R23: 1.721 | S23: 1.338 | T23: 4.849 | U23: 2.192 | V23: 14.057 | W23: 40.731 | X23: 5.744 | Y23: 5.001 | Z23: 2.209 | AA23: 17.123 | AB23: 64.636 | AC23: 75.554 | AD23: 22.935 | AE23: 30.507 | AF23: 1.224
A24: 2024-02-01 | B24: 14.999 | C24: 12.729 | D24: 4.652 | E24: 17.112 | F24: 26.675 | G24: 3.205 | H24: 3.34 | I24: 24.895 | J24: 29.163 | K24: 2.944 | L24: 6.497 | M24: 1.46 | N24: 6.298 | O24: 27.739 | P24: 16.787 | Q24: 15.669 | R24: 1.726 | S24: 1.337 | T24: 4.867 | U24: 2.19 | V24: 14.016 | W24: 41.047 | X24: 5.74 | Y24: 5.004 | Z24: 2.196 | AA24: 17.168 | AB24: 64.833 | AC24: 75.803 | AD24: 23.019 | AE24: 30.612 | AF24: 1.23
A25: 2024-02-02 | B25: 15.103 | C25: 12.718 | D25: 4.649 | E25: 17.087 | F25: 26.709 | G25: 3.184 | H25: 3.337 | I25: 24.875 | J25: 29.171 | K25: 2.923 | L25: 6.49 | M25: 1.46 | N25: 6.264 | O25: 27.565 | P25: 16.773 | Q25: 15.588 | R25: 1.727 | S25: 1.34 | T25: 4.845 | U25: 2.184 | V25: 14.075 | W25: 40.859 | X25: 5.763 | Y25: 5.002 | Z25: 2.207 | AA25: 17.112 | AB25: 64.876 | AC25: 75.037 | AD25: 22.853 | AE25: 30.369 | AF25: 1.225
A26: 2024-02-05 | B26: 15.104 | C26: 12.786 | D26: 4.661 | E26: 17.236 | F26: 26.754 | G26: 3.233 | H26: 3.354 | I26: 25.005 | J26: 29.219 | K26: 2.975 | L26: 6.489 | M26: 1.482 | N26: 6.332 | O26: 28.017 | P26: 16.884 | Q26: 15.66 | R26: 1.743 | S26: 1.353 | T26: 4.898 | U26: 2.181 | V26: 14.089 | W26: 41.309 | X26: 5.769 | Y26: 5.027 | Z26: 2.199 | AA26: 17.278 | AB26: 64.974 | AC26: 76.162 | AD26: 23.269 | AE26: 31.014 | AF26: 1.224
A27: 2024-02-06 | B27: 15.091 | C27: 12.744 | D27: 4.671 | E27: 17.162 | F27: 26.611 | G27: 3.229 | H27: 3.341 | I27: 24.925 | J27: 29.166 | K27: 2.967 | L27: 6.443 | M27: 1.475 | N27: 6.36 | O27: 27.944 | P27: 16.83 | Q27: 15.628 | R27: 1.748 | S27: 1.361 | T27: 4.87 | U27: 2.176 | V27: 14.071 | W27: 41.295 | X27: 5.731 | Y27: 5.008 | Z27: 2.191 | AA27: 17.255 | AB27: 65.172 | AC27: 75.936 | AD27: 23.208 | AE27: 30.744 | AF27: 1.226
A28: 2024-02-07 | B28: 15.14 | C28: 12.772 | D28: 4.671 | E28: 17.227 | F28: 26.599 | G28: 3.222 | H28: 3.349 | I28: 24.98 | J28: 29.287 | K28: 2.964 | L28: 6.435 | M28: 1.483 | N28: 6.367 | O28: 27.934 | P28: 16.844 | Q28: 15.648 | R28: 1.747 | S28: 1.359 | T28: 4.869 | U28: 2.196 | V28: 14.176 | W28: 41.424 | X28: 5.748 | Y28: 5.019 | Z28: 2.217 | AA28: 17.261 | AB28: 65.07 | AC28: 75.76 | AD28: 23.181 | AE28: 30.696 | AF28: 1.227
A29: 2024-02-08 | B29: 15.065 | C29: 12.759 | D29: 4.661 | E29: 17.208 | F29: 26.529 | G29: 3.223 | H29: 3.347 | I29: 24.955 | J29: 29.227 | K29: 2.966 | L29: 6.448 | M29: 1.484 | N29: 6.299 | O29: 27.949 | P29: 16.692 | Q29: 15.549 | R29: 1.742 | S29: 1.358 | T29: 4.863 | U29: 2.187 | V29: 14.131 | W29: 41.485 | X29: 5.755 | Y29: 5.013 | Z29: 2.215 | AA29: 17.221 | AB29: 64.63 | AC29: 75.838 | AD29: 23.195 | AE29: 30.762 | AF29: 1.224
A30: 2024-02-09 | B30: 15.217 | C30: 12.872 | D30: 4.694 | E30: 17.378 | F30: 26.697 | G30: 3.249 | H30: 3.378 | I30: 25.175 | J30: 29.459 | K30: 2.989 | L30: 6.488 | M30: 1.495 | N30: 6.342 | O30: 28.15 | P30: 16.999 | Q30: 15.638 | R30: 1.754 | S30: 1.365 | T30: 4.905 | U30: 2.208 | V30: 14.339 | W30: 41.812 | X30: 5.825 | Y30: 5.058 | Z30: 2.232 | AA30: 17.36 | AB30: 65.015 | AC30: 76.176 | AD30: 23.373 | AE30: 30.966 | AF30: 1.229
A31: 2024-02-12 | B31: 15.278 | C31: 12.893 | D31: 4.725 | E31: 17.385 | F31: 26.738 | G31: 3.254 | H31: 3.382 | I31: 25.215 | J31: 29.53 | K31: 2.993 | L31: 6.51 | M31: 1.501 | N31: 6.378 | O31: 28.195 | P31: 17.003 | Q31: 15.707 | R31: 1.761 | S31: 1.373 | T31: 4.912 | U31: 2.227 | V31: 14.355 | W31: 41.787 | X31: 5.835 | Y31: 5.068 | Z31: 2.245 | AA31: 17.412 | AB31: 65.291 | AC31: 76.234 | AD31: 23.407 | AE31: 31.017 | AF31: 1.233
A32: 2024-02-13 | B32: 15.299 | C32: 12.926 | D32: 4.728 | E32: 17.426 | F32: 26.67 | G32: 3.256 | H32: 3.391 | I32: 25.28 | J32: 29.704 | K32: 2.996 | L32: 6.531 | M32: 1.502 | N32: 6.431 | O32: 28.22 | P32: 17.001 | Q32: 15.686 | R32: 1.762 | S32: 1.372 | T32: 4.914 | U32: 2.237 | V32: 14.338 | W32: 41.852 | X32: 5.852 | Y32: 5.08 | Z32: 2.246 | AA32: 17.424 | AB32: 65.609 | AC32: 76.231 | AD32: 23.42 | AE32: 31.04 | AF32: 1.243
A33: 2024-02-14 | B33: 15.348 | C33: 12.962 | D33: 4.777 | E33: 17.472 | F33: 26.703 | G33: 3.29 | H33: 3.401 | I33: 25.35 | J33: 29.732 | K33: 3.027 | L33: 6.518 | M33: 1.517 | N33: 6.465 | O33: 28.498 | P33: 17.048 | Q33: 15.718 | R33: 1.775 | S33: 1.381 | T33: 4.944 | U33: 2.236 | V33: 14.399 | W33: 42.135 | X33: 5.839 | Y33: 5.095 | Z33: 2.241 | AA33: 17.542 | AB33: 65.405 | AC33: 77.017 | AD33: 23.663 | AE33: 31.374 | AF33: 1.243
A34: 2024-02-15 | B34: 15.38 | C34: 12.995 | D34: 4.761 | E34: 17.474 | F34: 26.8 | G34: 3.288 | H34: 3.409 | I34: 25.415 | J34: 29.669 | K34: 3.024 | L34: 6.533 | M34: 1.514 | N34: 6.509 | O34: 28.481 | P34: 17.091 | Q34: 15.761 | R34: 1.778 | S34: 1.384 | T34: 4.947 | U34: 2.237 | V34: 14.422 | W34: 42.226 | X34: 5.85 | Y34: 5.106 | Z34: 2.258 | AA34: 17.561 | AB34: 65.44 | AC34: 76.936 | AD34: 23.651 | AE34: 31.253 | AF34: 1.243
A35: 2024-02-16 | B35: 15.415 | C35: 13.016 | D35: 4.754 | E35: 17.536 | F35: 26.819 | G35: 3.287 | H35: 3.415 | I35: 25.455 | J35: 29.751 | K35: 3.023 | L35: 6.542 | M35: 1.514 | N35: 6.55 | O35: 28.489 | P35: 17.072 | Q35: 15.728 | R35: 1.774 | S35: 1.387 | T35: 4.946 | U35: 2.243 | V35: 14.428 | W35: 42.255 | X35: 5.866 | Y35: 5.114 | Z35: 2.26 | AA35: 17.559 | AB35: 65.565 | AC35: 76.706 | AD35: 23.646 | AE35: 31.28 | AF35: 1.252
A36: 2024-02-19 | B36: 15.447 | C36: 13.017 | D36: 4.765 | E36: 17.529 | F36: 26.826 | G36: 3.282 | H36: 3.415 | I36: 25.46 | J36: 29.791 | K36: 3.021 | L36: 6.557 | M36: 1.512 | N36: 6.518 | O36: 28.458 | P36: 17.122 | Q36: 15.755 | R36: 1.769 | S36: 1.386 | T36: 4.936 | U36: 2.252 | V36: 14.516 | W36: 42.145 | X36: 5.884 | Y36: 5.115 | Z36: 2.266 | AA36: 17.556 | AB36: 65.566 | AC36: 76.536 | AD36: 23.627 | AE36: 31.3 | AF36: 1.246
A37: 2024-02-20 | B37: 15.453 | C37: 13 | D37: 4.756 | E37: 17.456 | F37: 26.703 | G37: 3.27 | H37: 3.411 | I37: 25.425 | J37: 29.689 | K37: 3.008 | L37: 6.545 | M37: 1.503 | N37: 6.437 | O37: 28.367 | P37: 17.144 | Q37: 15.674 | R37: 1.765 | S37: 1.383 | T37: 4.905 | U37: 2.245 | V37: 14.535 | W37: 41.974 | X37: 5.881 | Y37: 5.109 | Z37: 2.266 | AA37: 17.504 | AB37: 65.305 | AC37: 76.139 | AD37: 23.531 | AE37: 31.173 | AF37: 1.242
A38: 2024-02-21 | B38: 15.396 | C38: 12.977 | D38: 4.769 | E38: 17.365 | F38: 26.685 | G38: 3.265 | H38: 3.405 | I38: 25.38 | J38: 29.645 | K38: 3.002 | L38: 6.543 | M38: 1.502 | N38: 6.387 | O38: 28.313 | P38: 17.045 | Q38: 15.657 | R38: 1.76 | S38: 1.377 | T38: 4.898 | U38: 2.24 | V38: 14.52 | W38: 41.965 | X38: 5.877 | Y38: 5.1 | Z38: 2.265 | AA38: 17.475 | AB38: 65.505 | AC38: 75.727 | AD38: 23.48 | AE38: 31.128 | AF38: 1.248
A39: 2024-02-22 | B39: 15.334 | C39: 12.947 | D39: 4.733 | E39: 17.32 | F39: 26.558 | G39: 3.247 | H39: 3.397 | I39: 25.32 | J39: 29.566 | K39: 2.986 | L39: 6.544 | M39: 1.498 | N39: 6.398 | O39: 28.177 | P39: 17.005 | Q39: 15.524 | R39: 1.76 | S39: 1.367 | T39: 4.889 | U39: 2.229 | V39: 14.468 | W39: 41.905 | X39: 5.867 | Y39: 5.088 | Z39: 2.266 | AA39: 17.4 | AB39: 65.03 | AC39: 75.35 | AD39: 23.354 | AE39: 30.971 | AF39: 1.225
A40: 2024-02-23 | B40: 15.393 | C40: 12.961 | D40: 4.711 | E40: 17.376 | F40: 26.625 | G40: 3.251 | H40: 3.401 | I40: 25.35 | J40: 29.7 | K40: 2.99 | L40: 6.528 | M40: 1.5 | N40: 6.448 | O40: 28.218 | P40: 17.071 | Q40: 15.559 | R40: 1.759 | S40: 1.37 | T40: 4.897 | U40: 2.225 | V40: 14.524 | W40: 41.85 | X40: 5.883 | Y40: 5.095 | Z40: 2.272 | AA40: 17.417 | AB40: 65.026 | AC40: 75.242 | AD40: 23.394 | AE40: 31.086 | AF40: 1.215
A41: 2024-02-26 | B41: 15.315 | C41: 12.969 | D41: 4.685 | E41: 17.283 | F41: 26.572 | G41: 3.248 | H41: 3.403 | I41: 25.365 | J41: 29.664 | K41: 2.988 | L41: 6.513 | M41: 1.496 | N41: 6.407 | O41: 28.205 | P41: 16.989 | Q41: 15.524 | R41: 1.756 | S41: 1.367 | T41: 4.893 | U41: 2.219 | V41: 14.444 | W41: 41.672 | X41: 5.895 | Y41: 5.1 | Z41: 2.271 | AA41: 17.395 | AB41: 65.145 | AC41: 75.108 | AD41: 23.376 | AE41: 31.024 | AF41: 1.211
A42: 2024-02-27 | B42: 15.298 | C42: 12.953 | D42: 4.696 | E42: 17.291 | F42: 26.55 | G42: 3.242 | H42: 3.399 | I42: 25.335 | J42: 29.595 | K42: 2.982 | L42: 6.493 | M42: 1.492 | N42: 6.438 | O42: 28.16 | P42: 16.969 | Q42: 15.54 | R42: 1.753 | S42: 1.368 | T42: 4.901 | U42: 2.217 | V42: 14.396 | W42: 41.6 | X42: 5.869 | Y42: 5.101 | Z42: 2.266 | AA42: 17.374 | AB42: 65.077 | AC42: 74.926 | AD42: 23.337 | AE42: 30.998 | AF42: 1.221
A43: 2024-02-28 | B43: 15.234 | C43: 12.961 | D43: 4.739 | E43: 17.254 | F43: 26.632 | G43: 3.256 | H43: 3.401 | I43: 25.35 | J43: 29.634 | K43: 2.995 | L43: 6.464 | M43: 1.495 | N43: 6.503 | O43: 28.282 | P43: 16.979 | Q43: 15.565 | R43: 1.753 | S43: 1.372 | T43: 4.915 | U43: 2.211 | V43: 14.297 | W43: 41.652 | X43: 5.892 | Y43: 5.102 | Z43: 2.265 | AA43: 17.413 | AB43: 65.146 | AC43: 75.161 | AD43: 23.442 | AE43: 31.143 | AF43: 1.221
A44: 2024-02-29 | B44: 15.201 | C44: 12.967 | D44: 4.69 | E44: 17.23 | F44: 26.602 | G44: 3.256 | H44: 3.402 | I44: 25.36 | J44: 29.607 | K44: 2.993 | L44: 6.446 | M44: 1.491 | N44: 6.551 | O44: 28.252 | P44: 16.986 | Q44: 15.604 | R44: 1.752 | S44: 1.371 | T44: 4.937 | U44: 2.207 | V44: 14.24 | W44: 41.674 | X44: 5.87 | Y44: 5.102 | Z44: 2.262 | AA44: 17.406 | AB44: 65.202 | AC44: 75.027 | AD44: 23.427 | AE44: 31.074 | AF44: 1.214
A45: 2024-03-01 | B45: 15.224 | C45: 12.952 | D45: 4.719 | E45: 17.255 | F45: 26.427 | G45: 3.255 | H45: 3.398 | I45: 25.33 | J45: 29.594 | K45: 2.993 | L45: 6.441 | M45: 1.492 | N45: 6.575 | O45: 28.267 | P45: 16.943 | Q45: 15.557 | R45: 1.754 | S45: 1.376 | T45: 4.936 | U45: 2.213 | V45: 14.26 | W45: 41.753 | X45: 5.865 | Y45: 5.097 | Z45: 2.262 | AA45: 17.394 | AB45: 65.14 | AC45: 74.734 | AD45: 23.428 | AE45: 31.102 | AF45: 1.222
A46: 2024-03-04 | B46: 15.233 | C46: 12.955 | D46: 4.721 | E46: 17.225 | F46: 26.385 | G46: 3.247 | H46: 3.402 | I46: 25.355 | J46: 29.634 | K46: 2.988 | L46: 6.414 | M46: 1.485 | N46: 6.534 | O46: 28.19 | P46: 16.96 | Q46: 15.53 | R46: 1.755 | S46: 1.374 | T46: 4.949 | U46: 2.217 | V46: 14.248 | W46: 41.754 | X46: 5.866 | Y46: 5.101 | Z46: 2.256 | AA46: 17.402 | AB46: 65.231 | AC46: 74.151 | AD46: 23.377 | AE46: 31.013 | AF46: 1.228
A47: 2024-03-05 | B47: 15.174 | C47: 12.964 | D47: 4.723 | E47: 17.193 | F47: 26.388 | G47: 3.246 | H47: 3.401 | I47: 25.355 | J47: 29.648 | K47: 2.987 | L47: 6.408 | M47: 1.482 | N47: 6.495 | O47: 28.187 | P47: 17.005 | Q47: 15.551 | R47: 1.752 | S47: 1.379 | T47: 4.936 | U47: 2.209 | V47: 14.205 | W47: 41.752 | X47: 5.862 | Y47: 5.1 | Z47: 2.247 | AA47: 17.39 | AB47: 65.239 | AC47: 73.824 | AD47: 23.371 | AE47: 31.046 | AF47: 1.232
A48: 2024-03-06 | B48: 15.214 | C48: 12.966 | D48: 4.719 | E48: 17.166 | F48: 26.365 | G48: 3.239 | H48: 3.402 | I48: 25.36 | J48: 29.662 | K48: 2.98 | L48: 6.459 | M48: 1.485 | N48: 6.466 | O48: 28.159 | P48: 17.032 | Q48: 15.587 | R48: 1.748 | S48: 1.382 | T48: 4.928 | U48: 2.21 | V48: 14.237 | W48: 41.754 | X48: 5.897 | Y48: 5.102 | Z48: 2.253 | AA48: 17.39 | AB48: 65.265 | AC48: 73.498 | AD48: 23.32 | AE48: 30.969 | AF48: 1.235
A49: 2024-03-07 | B49: 15.371 | C49: 12.967 | D49: 4.714 | E49: 17.249 | F49: 26.476 | G49: 3.235 | H49: 3.402 | I49: 25.36 | J49: 29.686 | K49: 2.976 | L49: 6.416 | M49: 1.487 | N49: 6.483 | O49: 28.142 | P49: 17.077 | Q49: 15.741 | R49: 1.754 | S49: 1.38 | T49: 4.947 | U49: 2.225 | V49: 14.339 | W49: 41.718 | X49: 5.895 | Y49: 5.102 | Z49: 2.264 | AA49: 17.433 | AB49: 65.436 | AC49: 73.106 | AD49: 23.279 | AE49: 30.956 | AF49: 1.239
A50: 2024-03-08 | B50: 15.36 | C50: 12.938 | D50: 4.652 | E50: 17.203 | F50: 26.389 | G50: 3.219 | H50: 3.395 | I50: 25.305 | J50: 29.713 | K50: 2.959 | L50: 6.422 | M50: 1.484 | N50: 6.472 | O50: 27.971 | P50: 16.949 | Q50: 15.717 | R50: 1.754 | S50: 1.372 | T50: 4.939 | U50: 2.231 | V50: 14.314 | W50: 41.632 | X50: 5.876 | Y50: 5.092 | Z50: 2.266 | AA50: 17.377 | AB50: 65.21 | AC50: 72.389 | AD50: 23.139 | AE50: 30.821 | AF50: 1.241
A51: 2024-03-11 | B51: 15.309 | C51: 12.948 | D51: 4.643 | E51: 17.164 | F51: 26.397 | G51: 3.227 | H51: 3.397 | I51: 25.325 | J51: 29.724 | K51: 2.964 | L51: 6.401 | M51: 1.487 | N51: 6.429 | O51: 28.012 | P51: 17.008 | Q51: 15.785 | R51: 1.767 | S51: 1.38 | T51: 4.949 | U51: 2.214 | V51: 14.306 | W51: 41.888 | X51: 5.916 | Y51: 5.101 | Z51: 2.264 | AA51: 17.423 | AB51: 65.448 | AC51: 72.419 | AD51: 23.177 | AE51: 30.935 | AF51: 1.24
A52: 2024-03-12 | B52: 15.284 | C52: 12.92 | D52: 4.648 | E52: 17.14 | F52: 26.357 | G52: 3.228 | H52: 3.389 | I52: 25.27 | J52: 29.56 | K52: 2.959 | L52: 6.344 | M52: 1.485 | N52: 6.334 | O52: 27.963 | P52: 16.994 | Q52: 15.663 | R52: 1.763 | S52: 1.376 | T52: 4.95 | U52: 2.203 | V52: 14.238 | W52: 41.85 | X52: 5.895 | Y52: 5.087 | Z52: 2.261 | AA52: 17.371 | AB52: 64.892 | AC52: 72.231 | AD52: 23.152 | AE52: 30.924 | AF52: 1.239
A53: 2024-03-13 | B53: 15.275 | C53: 12.92 | D53: 4.635 | E53: 17.121 | F53: 26.32 | G53: 3.212 | H53: 3.389 | I53: 25.27 | J53: 29.569 | K53: 2.953 | L53: 6.368 | M53: 1.483 | N53: 6.325 | O53: 27.896 | P53: 17.017 | Q53: 15.616 | R53: 1.756 | S53: 1.377 | T53: 4.927 | U53: 2.201 | V53: 14.22 | W53: 41.708 | X53: 5.897 | Y53: 5.086 | Z53: 2.258 | AA53: 17.33 | AB53: 64.737 | AC53: 71.956 | AD53: 23.099 | AE53: 30.829 | AF53: 1.235
A54: 2024-03-14 | B54: 15.233 | C54: 12.873 | D54: 4.64 | E54: 17.097 | F54: 26.178 | G54: 3.204 | H54: 3.377 | I54: 25.18 | J54: 29.475 | K54: 2.946 | L54: 6.38 | M54: 1.479 | N54: 6.344 | O54: 27.807 | P54: 16.956 | Q54: 15.578 | R54: 1.746 | S54: 1.381 | T54: 4.917 | U54: 2.195 | V54: 14.187 | W54: 41.607 | X54: 5.866 | Y54: 5.065 | Z54: 2.244 | AA54: 17.284 | AB54: 64.569 | AC54: 71.726 | AD54: 23.042 | AE54: 30.746 | AF54: 1.236
A55: 2024-03-15 | B55: 15.175 | C55: 12.861 | D55: 4.624 | E55: 17.079 | F55: 26.173 | G55: 3.209 | H55: 3.373 | I55: 25.155 | J55: 29.454 | K55: 2.952 | L55: 6.398 | M55: 1.481 | N55: 6.322 | O55: 27.866 | P55: 16.871 | Q55: 15.52 | R55: 1.737 | S55: 1.383 | T55: 4.909 | U55: 2.184 | V55: 14.089 | W55: 41.579 | X55: 5.857 | Y55: 5.06 | Z55: 2.233 | AA55: 17.275 | AB55: 64.412 | AC55: 71.676 | AD55: 23.093 | AE55: 30.819 | AF55: 1.236
A56: 2024-03-18 | B56: 15.198 | C56: 12.885 | D56: 4.636 | E56: 17.098 | F56: 26.168 | G56: 3.215 | H56: 3.379 | I56: 25.2 | J56: 29.467 | K56: 2.96 | L56: 6.38 | M56: 1.475 | N56: 6.339 | O56: 27.915 | P56: 16.924 | Q56: 15.51 | R56: 1.735 | S56: 1.382 | T56: 4.905 | U56: 2.18 | V56: 14.094 | W56: 41.623 | X56: 5.844 | Y56: 5.069 | Z56: 2.226 | AA56: 17.294 | AB56: 64.312 | AC56: 71.64 | AD56: 23.143 | AE56: 30.817 | AF56: 1.224
A57: 2024-03-19 | B57: 15.173 | C57: 12.918 | D57: 4.614 | E57: 17.11 | F57: 26.227 | G57: 3.234 | H57: 3.388 | I57: 25.265 | J57: 29.562 | K57: 2.976 | L57: 6.4 | M57: 1.481 | N57: 6.346 | O57: 28.037 | P57: 16.968 | Q57: 15.463 | R57: 1.739 | S57: 1.377 | T57: 4.919 | U57: 2.178 | V57: 14.082 | W57: 41.614 | X57: 5.844 | Y57: 5.08 | Z57: 2.227 | AA57: 17.346 | AB57: 64.536 | AC57: 71.975 | AD57: 23.279 | AE57: 30.999 | AF57: 1.23
A58: 2024-03-20 | B58: 15.201 | C58: 12.928 | D58: 4.646 | E58: 17.158 | F58: 26.179 | G58: 3.239 | H58: 3.391 | I58: 25.285 | J58: 29.594 | K58: 2.98 | L58: 6.397 | M58: 1.484 | N58: 6.349 | O58: 28.018 | P58: 17.027 | Q58: 15.366 | R58: 1.739 | S58: 1.385 | T58: 4.921 | U58: 2.185 | V58: 14.062 | W58: 41.463 | X58: 5.847 | Y58: 5.085 | Z58: 2.226 | AA58: 17.343 | AB58: 64.434 | AC58: 71.981 | AD58: 23.315 | AE58: 30.969 | AF58: 1.236
A59: 2024-03-21 | B59: 15.273 | C59: 12.909 | D59: 4.66 | E59: 17.131 | F59: 25.842 | G59: 3.216 | H59: 3.386 | I59: 25.25 | J59: 29.471 | K59: 2.961 | L59: 6.414 | M59: 1.479 | N59: 6.444 | O59: 27.853 | P59: 16.98 | Q59: 15.308 | R59: 1.742 | S59: 1.383 | T59: 4.911 | U59: 2.187 | V59: 14.052 | W59: 41.374 | X59: 5.869 | Y59: 5.077 | Z59: 2.222 | AA59: 17.274 | AB59: 64.135 | AC59: 72.39 | AD59: 23.155 | AE59: 30.73 | AF59: 1.237
A60: 2024-03-22 | B60: 15.286 | C60: 12.972 | D60: 4.687 | E60: 17.274 | F60: 26.083 | G60: 3.242 | H60: 3.402 | I60: 25.37 | J60: 29.571 | K60: 2.997 | L60: 6.396 | M60: 1.485 | N60: 6.458 | O60: 28.058 | P60: 17.038 | Q60: 15.493 | R60: 1.745 | S60: 1.399 | T60: 4.948 | U60: 2.183 | V60: 14.081 | W60: 41.634 | X60: 5.877 | Y60: 5.102 | Z60: 2.225 | AA60: 17.385 | AB60: 64.538 | AC60: 73.281 | AD60: 23.441 | AE60: 31.185 | AF60: 1.235
A61: 2024-03-25 | B61: 15.243 | C61: 12.918 | D61: 4.677 | E61: 17.16 | F61: 25.982 | G61: 3.234 | H61: 3.387 | I61: 25.265 | J61: 29.485 | K61: 2.981 | L61: 6.376 | M61: 1.476 | N61: 6.416 | O61: 27.953 | P61: 16.945 | Q61: 15.425 | R61: 1.738 | S61: 1.394 | T61: 4.934 | U61: 2.178 | V61: 14.007 | W61: 41.467 | X61: 5.864 | Y61: 5.082 | Z61: 2.205 | AA61: 17.337 | AB61: 64.193 | AC61: 72.527 | AD61: 23.315 | AE61: 30.87 | AF61: 1.233
A62: 2024-03-26 | B62: 15.249 | C62: 12.922 | D62: 4.675 | E62: 17.167 | F62: 25.758 | G62: 3.225 | H62: 3.389 | I62: 25.275 | J62: 29.441 | K62: 2.975 | L62: 6.385 | M62: 1.474 | N62: 6.358 | O62: 27.941 | P62: 16.929 | Q62: 15.375 | R62: 1.735 | S62: 1.395 | T62: 4.932 | U62: 2.173 | V62: 14.011 | W62: 41.387 | X62: 5.868 | Y62: 5.085 | Z62: 2.207 | AA62: 17.317 | AB62: 64.139 | AC62: 72.288 | AD62: 23.278 | AE62: 30.857 | AF62: 1.231
A63: 2024-03-27 | B63: 15.249 | C63: 12.946 | D63: 4.691 | E63: 17.208 | F63: 25.813 | G63: 3.238 | H63: 3.395 | I63: 25.32 | J63: 29.523 | K63: 2.992 | L63: 6.402 | M63: 1.476 | N63: 6.397 | O63: 28.092 | P63: 16.891 | Q63: 15.47 | R63: 1.732 | S63: 1.411 | T63: 4.946 | U63: 2.168 | V63: 14.032 | W63: 41.613 | X63: 5.868 | Y63: 5.093 | Z63: 2.201 | AA63: 17.356 | AB63: 64.28 | AC63: 72.544 | AD63: 23.408 | AE63: 31.059 | AF63: 1.237
A64: 2024-03-28 | B64: 15.236 | C64: 12.938 | D64: 4.68 | E64: 17.249 | F64: 25.911 | G64: 3.239 | H64: 3.393 | I64: 25.305 | J64: 29.594 | K64: 2.992 | L64: 6.402 | M64: 1.477 | N64: 6.358 | O64: 28.085 | P64: 16.836 | Q64: 15.476 | R64: 1.735 | S64: 1.413 | T64: 4.947 | U64: 2.162 | V64: 13.987 | W64: 41.626 | X64: 5.868 | Y64: 5.088 | Z64: 2.195 | AA64: 17.348 | AB64: 64.181 | AC64: 72.453 | AD64: 23.413 | AE64: 31.023 | AF64: 1.233
A65: 2024-04-02 | B65: 15.345 | C65: 12.965 | D65: 4.689 | E65: 17.395 | F65: 25.974 | G65: 3.261 | H65: 3.4 | I65: 25.36 | J65: 29.65 | K65: 3.014 | L65: 6.409 | M65: 1.484 | N65: 6.367 | O65: 28.29 | P65: 16.895 | Q65: 15.557 | R65: 1.745 | S65: 1.421 | T65: 4.963 | U65: 2.166 | V65: 14.054 | W65: 41.917 | X65: 5.906 | Y65: 5.103 | Z65: 2.195 | AA65: 17.447 | AB65: 64.404 | AC65: 73.308 | AD65: 23.595 | AE65: 31.232 | AF65: 1.253
A66: 2024-04-03 | B66: 15.326 | C66: 12.966 | D66: 4.636 | E66: 17.333 | F66: 25.889 | G66: 3.25 | H66: 3.399 | I66: 25.355 | J66: 29.578 | K66: 3.003 | L66: 6.447 | M66: 1.477 | N66: 6.315 | O66: 28.161 | P66: 16.892 | Q66: 15.488 | R66: 1.742 | S66: 1.418 | T66: 4.945 | U66: 2.175 | V66: 14.038 | W66: 41.676 | X66: 5.901 | Y66: 5.102 | Z66: 2.191 | AA66: 17.4 | AB66: 64.063 | AC66: 73.618 | AD66: 23.514 | AE66: 31.07 | AF66: 1.251
A67: 2024-04-04 | B67: 15.392 | C67: 12.941 | D67: 4.627 | E67: 17.277 | F67: 25.712 | G67: 3.224 | H67: 3.393 | I67: 25.31 | J67: 29.509 | K67: 2.979 | L67: 6.464 | M67: 1.467 | N67: 6.271 | O67: 27.962 | P67: 16.817 | Q67: 15.369 | R67: 1.731 | S67: 1.409 | T67: 4.921 | U67: 2.18 | V67: 14.065 | W67: 41.321 | X67: 5.894 | Y67: 5.093 | Z67: 2.199 | AA67: 17.306 | AB67: 63.474 | AC67: 73.136 | AD67: 23.322 | AE67: 30.848 | AF67: 1.249
A68: 2024-04-05 | B68: 15.363 | C68: 12.93 | D68: 4.629 | E68: 17.2 | F68: 25.829 | G68: 3.225 | H68: 3.391 | I68: 25.29 | J68: 29.486 | K68: 2.979 | L68: 6.486 | M68: 1.472 | N68: 6.21 | O68: 27.993 | P68: 16.826 | Q68: 15.409 | R68: 1.728 | S68: 1.412 | T68: 4.913 | U68: 2.178 | V68: 14.049 | W68: 41.274 | X68: 5.903 | Y68: 5.091 | Z68: 2.194 | AA68: 17.31 | AB68: 63.618 | AC68: 73.212 | AD68: 23.324 | AE68: 30.946 | AF68: 1.254
A69: 2024-04-08 | B69: 15.428 | C69: 12.964 | D69: 4.625 | E69: 17.228 | F69: 25.849 | G69: 3.239 | H69: 3.399 | I69: 25.355 | J69: 29.55 | K69: 2.991 | L69: 6.488 | M69: 1.478 | N69: 6.336 | O69: 28.117 | P69: 16.87 | Q69: 15.418 | R69: 1.726 | S69: 1.423 | T69: 4.93 | U69: 2.188 | V69: 14.098 | W69: 41.419 | X69: 5.929 | Y69: 5.103 | Z69: 2.211 | AA69: 17.356 | AB69: 63.81 | AC69: 72.748 | AD69: 23.423 | AE69: 31.057 | AF69: 1.258
A70: 2024-04-09 | B70: 15.469 | C70: 12.975 | D70: 4.657 | E70: 17.204 | F70: 25.849 | G70: 3.229 | H70: 3.403 | I70: 25.38 | J70: 29.621 | K70: 2.982 | L70: 6.519 | M70: 1.474 | N70: 6.332 | O70: 28.066 | P70: 16.886 | Q70: 15.383 | R70: 1.725 | S70: 1.431 | T70: 4.919 | U70: 2.188 | V70: 14.147 | W70: 41.399 | X70: 5.966 | Y70: 5.108 | Z70: 2.215 | AA70: 17.356 | AB70: 64.217 | AC70: 72.546 | AD70: 23.353 | AE70: 30.956 | AF70: 1.263
A71: 2024-04-10 | B71: 15.465 | C71: 12.969 | D71: 4.668 | E71: 17.222 | F71: 25.857 | G71: 3.229 | H71: 3.4 | I71: 25.365 | J71: 29.66 | K71: 2.982 | L71: 6.516 | M71: 1.474 | N71: 6.293 | O71: 28.071 | P71: 16.831 | Q71: 15.382 | R71: 1.729 | S71: 1.431 | T71: 4.919 | U71: 2.193 | V71: 14.202 | W71: 41.302 | X71: 5.959 | Y71: 5.104 | Z71: 2.219 | AA71: 17.368 | AB71: 64.18 | AC71: 72.398 | AD71: 23.354 | AE71: 31 | AF71: 1.265
A72: 2024-04-11 | B72: 15.442 | C72: 12.987 | D72: 4.666 | E72: 17.289 | F72: 25.971 | G72: 3.27 | H72: 3.404 | I72: 25.395 | J72: 29.693 | K72: 3.021 | L72: 6.514 | M72: 1.494 | N72: 6.3 | O72: 28.388 | P72: 16.896 | Q72: 15.468 | R72: 1.728 | S72: 1.44 | T72: 4.985 | U72: 2.186 | V72: 14.175 | W72: 41.916 | X72: 5.966 | Y72: 5.109 | Z72: 2.202 | AA72: 17.492 | AB72: 64.738 | AC72: 73.328 | AD72: 23.666 | AE72: 31.413 | AF72: 1.26
A73: 2024-04-12 | B73: 15.427 | C73: 12.95 | D73: 4.653 | E73: 17.296 | F73: 26.065 | G73: 3.286 | H73: 3.395 | I73: 25.33 | J73: 29.651 | K73: 3.035 | L73: 6.464 | M73: 1.501 | N73: 6.301 | O73: 28.49 | P73: 16.831 | Q73: 15.53 | R73: 1.723 | S73: 1.44 | T73: 4.986 | U73: 2.186 | V73: 14.169 | W73: 42.04 | X73: 5.946 | Y73: 5.095 | Z73: 2.189 | AA73: 17.496 | AB73: 65.227 | AC73: 73.569 | AD73: 23.782 | AE73: 31.393 | AF73: 1.267
A74: 2024-04-15 | B74: 15.405 | C74: 12.952 | D74: 4.638 | E74: 17.296 | F74: 26.043 | G74: 3.284 | H74: 3.395 | I74: 25.325 | J74: 29.66 | K74: 3.036 | L74: 6.424 | M74: 1.5 | N74: 6.397 | O74: 28.485 | P74: 16.805 | Q74: 15.439 | R74: 1.719 | S74: 1.434 | T74: 4.973 | U74: 2.178 | V74: 14.122 | W74: 41.823 | X74: 5.898 | Y74: 5.091 | Z74: 2.191 | AA74: 17.47 | AB74: 64.736 | AC74: 73.349 | AD74: 23.768 | AE74: 31.28 | AF74: 1.253
A75: 2024-04-16 | B75: 15.221 | C75: 12.902 | D75: 4.543 | E75: 17.204 | F75: 25.979 | G75: 3.276 | H75: 3.382 | I75: 25.235 | J75: 29.534 | K75: 3.028 | L75: 6.396 | M75: 1.466 | N75: 6.305 | O75: 28.37 | P75: 16.745 | Q75: 15.332 | R75: 1.703 | S75: 1.408 | T75: 4.948 | U75: 2.162 | V75: 13.964 | W75: 41.648 | X75: 5.808 | Y75: 5.071 | Z75: 2.169 | AA75: 17.384 | AB75: 64.784 | AC75: 72.96 | AD75: 23.713 | AE75: 31.215 | AF75: 1.248
A76: 2024-04-17 | B76: 15.235 | C76: 12.899 | D76: 4.503 | E76: 17.17 | F76: 26.023 | G76: 3.276 | H76: 3.382 | I76: 25.23 | J76: 29.54 | K76: 3.028 | L76: 6.422 | M76: 1.462 | N76: 6.278 | O76: 28.341 | P76: 16.764 | Q76: 15.332 | R76: 1.713 | S76: 1.396 | T76: 4.949 | U76: 2.157 | V76: 14.003 | W76: 41.437 | X76: 5.801 | Y76: 5.07 | Z76: 2.161 | AA76: 17.405 | AB76: 64.385 | AC76: 72.895 | AD76: 23.714 | AE76: 31.165 | AF76: 1.244
A77: 2024-04-18 | B77: 15.246 | C77: 12.918 | D77: 4.51 | E77: 17.202 | F77: 26.03 | G77: 3.269 | H77: 3.386 | I77: 25.265 | J77: 29.501 | K77: 3.021 | L77: 6.417 | M77: 1.463 | N77: 6.261 | O77: 28.334 | P77: 16.81 | Q77: 15.33 | R77: 1.722 | S77: 1.396 | T77: 4.947 | U77: 2.152 | V77: 14.024 | W77: 41.338 | X77: 5.841 | Y77: 5.077 | Z77: 2.171 | AA77: 17.401 | AB77: 64.371 | AC77: 72.861 | AD77: 23.663 | AE77: 31.119 | AF77: 1.242
A78: 2024-04-19 | B78: 15.207 | C78: 12.918 | D78: 4.507 | E78: 17.228 | F78: 26.084 | G78: 3.274 | H78: 3.386 | I78: 25.265 | J78: 29.516 | K78: 3.027 | L78: 6.394 | M78: 1.458 | N78: 6.301 | O78: 28.403 | P78: 16.81 | Q78: 15.336 | R78: 1.719 | S78: 1.371 | T78: 4.956 | U78: 2.148 | V78: 13.961 | W78: 41.152 | X78: 5.839 | Y78: 5.077 | Z78: 2.167 | AA78: 17.411 | AB78: 64.303 | AC78: 72.72 | AD78: 23.707 | AE78: 31.22 | AF78: 1.234
A79: 2024-04-22 | B79: 15.298 | C79: 12.924 | D79: 4.563 | E79: 17.318 | F79: 26.071 | G79: 3.281 | H79: 3.387 | I79: 25.275 | J79: 29.274 | K79: 3.032 | L79: 6.417 | M79: 1.464 | N79: 6.308 | O79: 28.502 | P79: 16.816 | Q79: 15.357 | R79: 1.722 | S79: 1.389 | T79: 4.973 | U79: 2.158 | V79: 14.037 | W79: 41.324 | X79: 5.855 | Y79: 5.08 | Z79: 2.178 | AA79: 17.438 | AB79: 64.146 | AC79: 73.027 | AD79: 23.761 | AE79: 31.255 | AF79: 1.242
A80: 2024-04-23 | B80: 15.275 | C80: 12.916 | D80: 4.569 | E80: 17.276 | F80: 25.977 | G80: 3.267 | H80: 3.386 | I80: 25.265 | J80: 29.357 | K80: 3.021 | L80: 6.42 | M80: 1.459 | N80: 6.253 | O80: 28.404 | P80: 16.81 | Q80: 15.293 | R80: 1.717 | S80: 1.381 | T80: 4.952 | U80: 2.153 | V80: 13.998 | W80: 41.126 | X80: 5.854 | Y80: 5.077 | Z80: 2.177 | AA80: 17.373 | AB80: 63.907 | AC80: 72.643 | AD80: 23.672 | AE80: 31.116 | AF80: 1.229
A81: 2024-04-24 | B81: 15.36 | C81: 12.903 | D81: 4.594 | E81: 17.252 | F81: 25.81 | G81: 3.259 | H81: 3.384 | I81: 25.235 | J81: 29.364 | K81: 3.015 | L81: 6.417 | M81: 1.462 | N81: 6.256 | O81: 28.337 | P81: 16.79 | Q81: 15.239 | R81: 1.715 | S81: 1.393 | T81: 4.943 | U81: 2.15 | V81: 14.009 | W81: 41.043 | X81: 5.845 | Y81: 5.072 | Z81: 2.171 | AA81: 17.346 | AB81: 63.709 | AC81: 72.625 | AD81: 23.616 | AE81: 31.044 | AF81: 1.23
A82: 2024-04-25 | B82: 15.322 | C82: 12.863 | D82: 4.572 | E82: 17.158 | F82: 25.687 | G82: 3.239 | H82: 3.373 | I82: 25.155 | J82: 29.361 | K82: 2.998 | L82: 6.402 | M82: 1.45 | N82: 6.187 | O82: 28.169 | P82: 16.759 | Q82: 15.085 | R82: 1.707 | S82: 1.377 | T82: 4.913 | U82: 2.146 | V82: 13.983 | W82: 40.619 | X82: 5.828 | Y82: 5.055 | Z82: 2.161 | AA82: 17.253 | AB82: 63.36 | AC82: 72.192 | AD82: 23.47 | AE82: 30.894 | AF82: 1.236

Sheet List1 (hidden)
H1: 2024-01-01 | I1: 2024-01-01 | P1: počet dní | AB1: =Příkaz!F15 -> 2024-01-04 | AC1: =VLOOKUP(VLOOKUP(AB1,AB3:AD569,3,FALSE)+10,AA3:AB569,2,FALSE) -> 2024-01-18
A2: 1 | H2: 2024-12-31 | I2: 2025-09-30 | K2: Ano | L2: JE | M2: katedra | N2: ZO PF UK | P2: =Příkaz!F15-Příkaz!F7+1 -> 3 | Q2: =VALUE(RIGHT(P2,1)) -> 3 | R2: =P2&" "&VLOOKUP(Q2,P6:Q15,2,FALSE) -> 3 dny | V2: Země | W2: Měnový kód | X2: Měna | Y2: Základní sazby zahraničního stravného | AA2: poř | AB2: datum | AC2: body | AD2: č2 | AE2: den
A3: 2 | B3: V | C3: Vlak | K3: Ne | L3: NENÍ | M3: grant | N3: jinak | R3: CZK | S3: CZK | T3: 0 | U3: 1 | V3: Afghánistán | W3: EUR | X3: euro | Y3: 45 | AA3: 0 | AB3: 2023-01-01 | AC3: 0 | AE3: =WEEKDAY(AB3,2) -> 7
A4: 3 | B4: A | C4: Autobus | I4: CZK | M4: jiné | R4: EUR | S4: AUD | T4: 2 | U4: 1 | V4: Albánie | W4: EUR | X4: euro | Y4: 40 | AA4: =AA3+AC4 -> 1 | AB4: 2023-01-02 | AC4: 1 | AD4: =AA3+AC4 -> 1 | AE4: =WEEKDAY(AB4,2) -> 1
A5: 4 | B5: L | C5: Letadlo | I5: EUR | K5: Ne | R5: GBP | S5: BGN | T5: 3 | U5: 1 | V5: Alžírsko | W5: EUR | X5: euro | Y5: 50 | AA5: 2 | AB5: 2023-01-03 | AC5: 1 | AD5: =AA4+AC5 -> 2 | AE5: 2
A6: 5 | B6: SV | C6: Služební silniční vozidlo | I6: USD | K6: Ano, v hotovosti | N6: ZO PF UK | P6: 0 | Q6: dní | R6: PLN | S6: BRL | T6: 4 | U6: 1 | V6: Andorra | W6: EUR | X6: euro | Y6: 50 | AA6: 3 | AB6: 2023-01-04 | AC6: 1 | AD6: 3 | AE6: 3
A7: 6 | B7: SJ | C7: Spolujízda | I7: GBP | K7: Ano, na bank. účet | N7: vyjíždějící | P7: 1 | Q7: den | R7: USD | S7: CAD | T7: 5 | U7: 1 | V7: Angola | W7: USD | X7: americký dolar | Y7: 60 | AA7: 4 | AB7: 2023-01-05 | AC7: 1 | AD7: 4 | AE7: 4
A8: 7 | B8: VV | C8: Vlastní silniční vozidlo - náhrada za každý km jízdy | I8: AUD | P8: 2 | Q8: dny | S8: CHF | T8: 6 | U8: 1 | V8: Argentina | W8: USD | X8: americký dolar | Y8: 50 | AA8: 5 | AB8: 2023-01-06 | AC8: 1 | AD8: 5 | AE8: 5
A9: 8 | B9: V - VV | C9: Vlastní vozidlo s náhradou výdajů za vlak | I9: BRL | P9: 3 | Q9: dny | S9: CNY | T9: 7 | U9: 1 | V9: Arménie | W9: EUR | X9: euro | Y9: 45 | AA9: 5 | AB9: 2023-01-07 | AC9: 0 | AD9: 5 | AE9: 6
A10: 9 | B10: A - VV | C10: Vlastní vozidlo s náhradou výdajů za autobus | I10: BGN | P10: 4 | Q10: dny | S10: DKK | T10: 8 | U10: 1 | V10: Austrálie a Oceánie – ostrovní státy1) | W10: USD | X10: americký dolar | Y10: 65 | AA10: 5 | AB10: 2023-01-08 | AC10: 0 | AD10: 5 | AE10: 7
A11: 10 | B11: L - VV | C11: Vlastní vozidlo s náhradou výdajů za letadlo | I11: CNY | P11: 5 | Q11: dní | S11: EUR | T11: 9 | U11: 1 | V11: Ázerbájdžán | W11: EUR | X11: euro | Y11: 40 | AA11: 6 | AB11: 2023-01-09 | AC11: 1 | AD11: 6 | AE11: 1
A12: 11 | I12: DKK | P12: 6 | Q12: dní | S12: GBP | T12: 10 | U12: 1 | V12: Bahamy | W12: USD | X12: americký dolar | Y12: 60 | AA12: 7 | AB12: 2023-01-10 | AC12: 1 | AD12: 7 | AE12: 2
A13: 12 | B13: S | I13: PHP | P13: 7 | Q13: dní | S13: HKD | T13: 11 | U13: 1 | V13: Bahrajn | W13: EUR | X13: euro | Y13: 45 | AA13: 8 | AB13: 2023-01-11 | AC13: 1 | AD13: 8 | AE13: 3
A14: 13 | B14: O | I14: HKD | P14: 8 | Q14: dní | S14: HUF | T14: 12 | U14: 100 | V14: Bangladéš | W14: USD | X14: americký dolar | Y14: 50 | AA14: 9 | AB14: 2023-01-12 | AC14: 1 | AD14: 9 | AE14: 4
A15: 14 | B15: V | I15: HRK | P15: 9 | Q15: dní | S15: IDR | T15: 13 | U15: 1000 | V15: Belgie | W15: EUR | X15: euro | Y15: 50 | AA15: 10 | AB15: 2023-01-13 | AC15: 1 | AD15: 10 | AE15: 5
A16: 15 | B16: SO | I16: INR | S16: ILS | T16: 14 | U16: 1 | V16: Belize | W16: USD | X16: americký dolar | Y16: 50 | AA16: 10 | AB16: 2023-01-14 | AC16: 0 | AD16: 10 | AE16: 6
A17: 16 | B17: SV | I17: IDR | S17: INR | T17: 15 | U17: 100 | V17: Benin | W17: EUR | X17: euro | Y17: 45 | AA17: 10 | AB17: 2023-01-15 | AC17: 0 | AD17: 10 | AE17: 7
A18: 17 | B18: OV | I18: ISK | S18: ISK | T18: 16 | U18: 100 | V18: Bermudy | W18: USD | X18: americký dolar | Y18: 50 | AA18: 11 | AB18: 2023-01-16 | AC18: 1 | AD18: 11 | AE18: 1
A19: 18 | B19: SOV | I19: ILS | S19: JPY | T19: 17 | U19: 100 | V19: Bělorusko | W19: EUR | X19: euro | Y19: 45 | AA19: 12 | AB19: 2023-01-17 | AC19: 1 | AD19: 12 | AE19: 2
A20: 19 | I20: JPY | S20: KRW | T20: 18 | U20: 100 | V20: Bhútán | W20: USD | X20: americký dolar | Y20: 50 | AA20: 13 | AB20: 2023-01-18 | AC20: 1 | AD20: 13 | AE20: 3
A21: 20 | I21: ZAR | S21: MXN | T21: 19 | U21: 1 | V21: Bolívie | W21: USD | X21: americký dolar | Y21: 50 | AA21: 14 | AB21: 2023-01-19 | AC21: 1 | AD21: 14 | AE21: 4
A22: 21 | B22: 110 | C22: Z | D22: 1 | I22: CAD | S22: MYR | T22: 20 | U22: 1 | V22: Bosna a Hercegovina | W22: EUR | X22: euro | Y22: 40 | AA22: 15 | AB22: 2023-01-20 | AC22: 1 | AD22: 15 | AE22: 5
A23: 22 | B23: 1010 | C23: P | D23: 2 | I23: KRW | S23: NOK | T23: 21 | U23: 1 | V23: Botswana | W23: USD | X23: americký dolar | Y23: 55 | AA23: 15 | AB23: 2023-01-21 | AC23: 0 | AD23: 15 | AE23: 6
A24: 23 | B24: 1001 | C24: K | D24: 3 | I24: HUF | S24: NZD | T24: 22 | U24: 1 | V24: Brazílie | W24: USD | X24: americký dolar | Y24: 60 | AA24: 15 | AB24: 2023-01-22 | AC24: 0 | AD24: 15 | AE24: 7
A25: 24 | B25: 101 | C25: S | D25: 4 | I25: MYR | S25: PHP | T25: 23 | U25: 100 | V25: Brunej | W25: USD | X25: americký dolar | Y25: 40 | AA25: 16 | AB25: 2023-01-23 | AC25: 1 | AD25: 16 | AE25: 1
A26: 25 | B26: 0 | C26: 0 | D26: 5 | I26: MXN | S26: PLN | T26: 24 | U26: 1 | V26: Bulharsko | W26: EUR | X26: euro | Y26: 40 | AA26: 17 | AB26: 2023-01-24 | AC26: 1 | AD26: 17 | AE26: 2
A27: 26 | I27: XDR | S27: RON | T27: 25 | U27: 1 | V27: Burkina Faso | W27: EUR | X27: euro | Y27: 40 | AA27: 18 | AB27: 2023-01-25 | AC27: 1 | AD27: 18 | AE27: 3
A28: 27 | I28: NOK | S28: SEK | T28: 26 | U28: 1 | V28: Burundi | W28: USD | X28: americký dolar | Y28: 55 | AA28: 19 | AB28: 2023-01-26 | AC28: 1 | AD28: 19 | AE28: 4
A29: 28 | I29: NZD | S29: SGD | T29: 27 | U29: 1 | V29: Čad | W29: EUR | X29: euro | Y29: 50 | AA29: 20 | AB29: 2023-01-27 | AC29: 1 | AD29: 20 | AE29: 5
A30: 29 | I30: PLN | S30: THB | T30: 28 | U30: 100 | V30: Černá Hora | W30: EUR | X30: euro | Y30: 40 | AA30: 20 | AB30: 2023-01-28 | AC30: 0 | AD30: 20 | AE30: 6
A31: 30 | I31: RON | S31: TRY | T31: 29 | U31: 100 | V31: Čína | W31: EUR | X31: euro | Y31: 45 | AA31: 20 | AB31: 2023-01-29 | AC31: 0 | AD31: 20 | AE31: 7
A32: 31 | I32: RUB | S32: USD | T32: 30 | U32: 1 | V32: Dánsko | W32: EUR | X32: euro | Y32: 60 | AA32: 21 | AB32: 2023-01-30 | AC32: 1 | AD32: 21 | AE32: 1
A33: 32 | I33: SGD | S33: XDR | T33: 31 | U33: 1 | V33: Džibutsko | W33: USD | X33: americký dolar | Y33: 65 | AA33: 22 | AB33: 2023-01-31 | AC33: 1 | AD33: 22 | AE33: 2
A34: 33 | I34: SEK | S34: ZAR | T34: 32 | U34: 1 | V34: Egypt | W34: EUR | X34: euro | Y34: 50 | AA34: 23 | AB34: 2023-02-01 | AC34: 1 | AD34: 23 | AE34: 3
A35: 34 | I35: CHF | V35: Ekvádor | W35: USD | X35: americký dolar | Y35: 50 | AA35: 24 | AB35: 2023-02-02 | AC35: 1 | AD35: 24 | AE35: 4
A36: 35 | I36: THB | V36: Eritrea | W36: USD | X36: americký dolar | Y36: 50 | AA36: 25 | AB36: 2023-02-03 | AC36: 1 | AD36: 25 | AE36: 5
A37: 36 | I37: TRY | T37: =RIGHT(S37,3) ->  | V37: Estonsko | W37: EUR | X37: euro | Y37: 45 | AA37: 25 | AB37: 2023-02-04 | AC37: 0 | AD37: 25 | AE37: 6
A38: 37 | V38: Etiopie | W38: EUR | X38: euro | Y38: 50 | AA38: 25 | AB38: 2023-02-05 | AC38: 0 | AD38: 25 | AE38: 7
A39: 38 | V39: Filipíny | W39: EUR | X39: euro | Y39: 40 | AA39: 26 | AB39: 2023-02-06 | AC39: 1 | AD39: 26 | AE39: 1
A40: 39 | V40: Finsko | W40: EUR | X40: euro | Y40: 55 | AA40: 27 | AB40: 2023-02-07 | AC40: 1 | AD40: 27 | AE40: 2
A41: 40 | V41: Francie | W41: EUR | X41: euro | Y41: 50 | AA41: 28 | AB41: 2023-02-08 | AC41: 1 | AD41: 28 | AE41: 3
A42: 41 | V42: Francouzská Guyana | W42: EUR | X42: euro | Y42: 45 | AA42: 29 | AB42: 2023-02-09 | AC42: 1 | AD42: 29 | AE42: 4
A43: 42 | V43: Gabon | W43: EUR | X43: euro | Y43: 50 | AA43: 30 | AB43: 2023-02-10 | AC43: 1 | AD43: 30 | AE43: 5
A44: 43 | V44: Gambie | W44: EUR | X44: euro | Y44: 45 | AA44: 30 | AB44: 2023-02-11 | AC44: 0 | AD44: 30 | AE44: 6
A45: 44 | V45: Ghana | W45: EUR | X45: euro | Y45: 55 | AA45: 30 | AB45: 2023-02-12 | AC45: 0 | AD45: 30 | AE45: 7
A46: 45 | V46: Gibraltar | W46: EUR | X46: euro | Y46: 40 | AA46: 31 | AB46: 2023-02-13 | AC46: 1 | AD46: 31 | AE46: 1
A47: 46 | V47: Gruzie | W47: EUR | X47: euro | Y47: 45 | AA47: 32 | AB47: 2023-02-14 | AC47: 1 | AD47: 32 | AE47: 2
A48: 47 | V48: Guatemala | W48: USD | X48: americký dolar | Y48: 45 | AA48: 33 | AB48: 2023-02-15 | AC48: 1 | AD48: 33 | AE48: 3
A49: 48 | V49: Guinea | W49: EUR | X49: euro | Y49: 50 | AA49: 34 | AB49: 2023-02-16 | AC49: 1 | AD49: 34 | AE49: 4
A50: 49 | V50: Guinea-Bissau | W50: EUR | X50: euro | Y50: 45 | AA50: 35 | AB50: 2023-02-17 | AC50: 1 | AD50: 35 | AE50: 5
A51: 50 | V51: Guyana | W51: USD | X51: americký dolar | Y51: 50 | AA51: 35 | AB51: 2023-02-18 | AC51: 0 | AD51: 35 | AE51: 6
A52: 51 | V52: Honduras | W52: USD | X52: americký dolar | Y52: 45 | AA52: 35 | AB52: 2023-02-19 | AC52: 0 | AD52: 35 | AE52: 7
A53: 52 | V53: Hongkong | W53: EUR | X53: euro | Y53: 50 | AA53: 36 | AB53: 2023-02-20 | AC53: 1 | AD53: 36 | AE53: 1
A54: 53 | V54: Chile | W54: USD | X54: americký dolar | Y54: 55 | AA54: 37 | AB54: 2023-02-21 | AC54: 1 | AD54: 37 | AE54: 2
A55: 54 | V55: Chorvatsko | W55: EUR | X55: euro | Y55: 45 | AA55: 38 | AB55: 2023-02-22 | AC55: 1 | AD55: 38 | AE55: 3
A56: 55 | V56: Indie | W56: EUR | X56: euro | Y56: 45 | AA56: 39 | AB56: 2023-02-23 | AC56: 1 | AD56: 39 | AE56: 4
A57: 56 | V57: Indonésie | W57: EUR | X57: euro | Y57: 40 | AA57: 40 | AB57: 2023-02-24 | AC57: 1 | AD57: 40 | AE57: 5
A58: 57 | V58: Irák | W58: EUR | X58: euro | Y58: 50 | AA58: 40 | AB58: 2023-02-25 | AC58: 0 | AD58: 40 | AE58: 6
A59: 58 | V59: Írán | W59: EUR | X59: euro | Y59: 40 | AA59: 40 | AB59: 2023-02-26 | AC59: 0 | AD59: 40 | AE59: 7
A60: 59 | V60: Irsko | W60: EUR | X60: euro | Y60: 50 | AA60: 41 | AB60: 2023-02-27 | AC60: 1 | AD60: 41 | AE60: 1
A61: 60 | V61: Island | W61: EUR | X61: euro | Y61: 65 | AA61: 42 | AB61: 2023-02-28 | AC61: 1 | AD61: 42 | AE61: 2
A62: 61 | V62: Itálie, Vatikán a San Marino | W62: EUR | X62: euro | Y62: 50 | AA62: 43 | AB62: 2023-03-01 | AC62: 1 | AD62: 43 | AE62: 3
V63: Izrael | W63: USD | X63: americký dolar | Y63: 60 | AA63: 44 | AB63: 2023-03-02 | AC63: 1 | AD63: 44 | AE63: 4
V64: Japonsko | W64: USD | X64: americký dolar | Y64: 65 | AA64: 45 | AB64: 2023-03-03 | AC64: 1 | AD64: 45 | AE64: 5
V65: Jemen | W65: EUR | X65: euro | Y65: 35 | AA65: 45 | AB65: 2023-03-04 | AC65: 0 | AD65: 45 | AE65: 6
V66: Jihoafrická republika | W66: EUR | X66: euro | Y66: 40 | AA66: 45 | AB66: 2023-03-05 | AC66: 0 | AD66: 45 | AE66: 7
V67: Jižní Súdán | W67: USD | X67: americký dolar | Y67: 55 | AA67: 46 | AB67: 2023-03-06 | AC67: 1 | AD67: 46 | AE67: 1
V68: Jordánsko | W68: EUR | X68: euro | Y68: 50 | AA68: =AA67+AC68 -> 47 | AB68: 2023-03-07 | AC68: 1 | AD68: 47 | AE68: =WEEKDAY(AB68,2) -> 2
T69: =RIGHT(S69,3) ->  | V69: Kambodža | W69: USD | X69: americký dolar | Y69: 45 | AA69: 48 | AB69: 2023-03-08 | AC69: 1 | AD69: =AA68+AC69 -> 48 | AE69: 3
V70: Kamerun | W70: EUR | X70: euro | Y70: 50 | AA70: 49 | AB70: 2023-03-09 | AC70: 1 | AD70: 49 | AE70: 4
V71: Kanada | W71: USD | X71: americký dolar | Y71: 50 | AA71: 50 | AB71: 2023-03-10 | AC71: 1 | AD71: 50 | AE71: 5
V72: Kapverdy | W72: EUR | X72: euro | Y72: 40 | AA72: 50 | AB72: 2023-03-11 | AC72: 0 | AD72: 50 | AE72: 6
V73: Karibik – ostrovní státy2) | W73: USD | X73: americký dolar | Y73: 60 | AA73: 50 | AB73: 2023-03-12 | AC73: 0 | AD73: 50 | AE73: 7
V74: Katar | W74: USD | X74: americký dolar | Y74: 50 | AA74: 51 | AB74: 2023-03-13 | AC74: 1 | AD74: 51 | AE74: 1
V75: Kazachstán | W75: EUR | X75: euro | Y75: 45 | AA75: 52 | AB75: 2023-03-14 | AC75: 1 | AD75: 52 | AE75: 2
V76: Keňa | W76: EUR | X76: euro | Y76: 45 | AA76: 53 | AB76: 2023-03-15 | AC76: 1 | AD76: 53 | AE76: 3
V77: Kolumbie | W77: USD | X77: americký dolar | Y77: 45 | AA77: 54 | AB77: 2023-03-16 | AC77: 1 | AD77: 54 | AE77: 4
V78: Komory | W78: USD | X78: americký dolar | Y78: 55 | AA78: 55 | AB78: 2023-03-17 | AC78: 1 | AD78: 55 | AE78: 5
V79: Konžská republika (Brazzaville) | W79: USD | X79: americký dolar | Y79: 60 | AA79: 55 | AB79: 2023-03-18 | AC79: 0 | AD79: 55 | AE79: 6
V80: Konžská demokratická republika (Kinshasa) | W80: USD | X80: americký dolar | Y80: 65 | AA80: 55 | AB80: 2023-03-19 | AC80: 0 | AD80: 55 | AE80: 7
V81: Korejská lidově demokratická republika | W81: EUR | X81: euro | Y81: 45 | AA81: 56 | AB81: 2023-03-20 | AC81: 1 | AD81: 56 | AE81: 1
V82: Korejská republika | W82: EUR | X82: euro | Y82: 55 | AA82: 57 | AB82: 2023-03-21 | AC82: 1 | AD82: 57 | AE82: 2
V83: Kosovo | W83: EUR | X83: euro | Y83: 45 | AA83: 58 | AB83: 2023-03-22 | AC83: 1 | AD83: 58 | AE83: 3
V84: Kostarika | W84: USD | X84: americký dolar | Y84: 50 | AA84: 59 | AB84: 2023-03-23 | AC84: 1 | AD84: 59 | AE84: 4
V85: Kuba | W85: EUR | X85: euro | Y85: 60 | AA85: 60 | AB85: 2023-03-24 | AC85: 1 | AD85: 60 | AE85: 5
V86: Kuvajt | W86: EUR | X86: euro | Y86: 40 | AA86: 60 | AB86: 2023-03-25 | AC86: 0 | AD86: 60 | AE86: 6
V87: Kypr | W87: EUR | X87: euro | Y87: 45 | AA87: 60 | AB87: 2023-03-26 | AC87: 0 | AD87: 60 | AE87: 7
V88: Kyrgyzstán | W88: EUR | X88: euro | Y88: 40 | AA88: 61 | AB88: 2023-03-27 | AC88: 1 | AD88: 61 | AE88: 1
V89: Laos | W89: USD | X89: americký dolar | Y89: 45 | AA89: 62 | AB89: 2023-03-28 | AC89: 1 | AD89: 62 | AE89: 2
V90: Lesotho | W90: USD | X90: americký dolar | Y90: 50 | AA90: 63 | AB90: 2023-03-29 | AC90: 1 | AD90: 63 | AE90: 3
V91: Libanon | W91: USD | X91: americký dolar | Y91: 55 | AA91: 64 | AB91: 2023-03-30 | AC91: 1 | AD91: 64 | AE91: 4
V92: Libérie | W92: EUR | X92: euro | Y92: 45 | AA92: 65 | AB92: 2023-03-31 | AC92: 1 | AD92: 65 | AE92: 5
V93: Libye | W93: EUR | X93: euro | Y93: 45 | AA93: 65 | AB93: 2023-04-01 | AC93: 0 | AD93: 65 | AE93: 6
V94: Lichtenštejnsko | W94: CHF | X94: švýcarský frank | Y94: 70 | AA94: 65 | AB94: 2023-04-02 | AC94: 0 | AD94: 65 | AE94: 7
V95: Litva | W95: EUR | X95: euro | Y95: 40 | AA95: 66 | AB95: 2023-04-03 | AC95: 1 | AD95: 66 | AE95: 1
V96: Lotyšsko | W96: EUR | X96: euro | Y96: 45 | AA96: 67 | AB96: 2023-04-04 | AC96: 1 | AD96: 67 | AE96: 2
V97: Lucembursko | W97: EUR | X97: euro | Y97: 55 | AA97: 68 | AB97: 2023-04-05 | AC97: 1 | AD97: 68 | AE97: 3
V98: Macao | W98: EUR | X98: euro | Y98: 45 | AA98: 69 | AB98: 2023-04-06 | AC98: 1 | AD98: 69 | AE98: 4
V99: Madagaskar | W99: EUR | X99: euro | Y99: 40 | AA99: 69 | AB99: 2023-04-07 | AC99: 0 | AD99: 69 | AE99: 5
V100: Maďarsko | W100: EUR | X100: euro | Y100: 45 | AA100: 69 | AB100: 2023-04-08 | AC100: 0 | AD100: 69 | AE100: 6
V101: Malajsie | W101: USD | X101: americký dolar | Y101: 45 | AA101: 69 | AB101: 2023-04-09 | AC101: 0 | AD101: 69 | AE101: 7
V102: Malawi | W102: USD | X102: americký dolar | Y102: 45 | AA102: 69 | AB102: 2023-04-10 | AC102: 0 | AD102: 69 | AE102: 1
V103: Maledivy | W103: USD | X103: americký dolar | Y103: 55 | AA103: 70 | AB103: 2023-04-11 | AC103: 1 | AD103: 70 | AE103: 2
V104: Mali | W104: EUR | X104: euro | Y104: 50 | AA104: 71 | AB104: 2023-04-12 | AC104: 1 | AD104: 71 | AE104: 3
V105: Malta | W105: EUR | X105: euro | Y105: 50 | AA105: 72 | AB105: 2023-04-13 | AC105: 1 | AD105: 72 | AE105: 4
V106: Maroko | W106: EUR | X106: euro | Y106: 50 | AA106: 73 | AB106: 2023-04-14 | AC106: 1 | AD106: 73 | AE106: 5
V107: Mauretánie | W107: EUR | X107: euro | Y107: 40 | AA107: 73 | AB107: 2023-04-15 | AC107: 0 | AD107: 73 | AE107: 6
V108: Mauricius | W108: USD | X108: americký dolar | Y108: 55 | AA108: 73 | AB108: 2023-04-16 | AC108: 0 | AD108: 73 | AE108: 7
V109: Mexiko | W109: USD | X109: americký dolar | Y109: 50 | AA109: 74 | AB109: 2023-04-17 | AC109: 1 | AD109: 74 | AE109: 1
V110: Moldavsko | W110: EUR | X110: euro | Y110: 45 | AA110: 75 | AB110: 2023-04-18 | AC110: 1 | AD110: 75 | AE110: 2
V111: Monako | W111: EUR | X111: euro | Y111: 45 | AA111: 76 | AB111: 2023-04-19 | AC111: 1 | AD111: 76 | AE111: 3
V112: Mongolsko | W112: EUR | X112: euro | Y112: 40 | AA112: 77 | AB112: 2023-04-20 | AC112: 1 | AD112: 77 | AE112: 4
V113: Mosambik | W113: USD | X113: americký dolar | Y113: 50 | AA113: 78 | AB113: 2023-04-21 | AC113: 1 | AD113: 78 | AE113: 5
V114: Myanmar (Barma) | W114: USD | X114: americký dolar | Y114: 55 | AA114: 78 | AB114: 2023-04-22 | AC114: 0 | AD114: 78 | AE114: 6
V115: Namibie | W115: USD | X115: americký dolar | Y115: 50 | AA115: 78 | AB115: 2023-04-23 | AC115: 0 | AD115: 78 | AE115: 7
V116: Německo | W116: EUR | X116: euro | Y116: 45 | AA116: 79 | AB116: 2023-04-24 | AC116: 1 | AD116: 79 | AE116: 1
V117: Nepál | W117: USD | X117: americký dolar | Y117: 50 | AA117: 80 | AB117: 2023-04-25 | AC117: 1 | AD117: 80 | AE117: 2
V118: Niger | W118: EUR | X118: euro | Y118: 50 | AA118: 81 | AB118: 2023-04-26 | AC118: 1 | AD118: 81 | AE118: 3
V119: Nigérie | W119: EUR | X119: euro | Y119: 50 | AA119: 82 | AB119: 2023-04-27 | AC119: 1 | AD119: 82 | AE119: 4
V120: Nikaragua | W120: USD | X120: americký dolar | Y120: 45 | AA120: 83 | AB120: 2023-04-28 | AC120: 1 | AD120: 83 | AE120: 5
V121: Nizozemsko | W121: EUR | X121: euro | Y121: 50 | AA121: 83 | AB121: 2023-04-29 | AC121: 0 | AD121: 83 | AE121: 6
V122: Norsko | W122: EUR | X122: euro | Y122: 65 | AA122: 83 | AB122: 2023-04-30 | AC122: 0 | AD122: 83 | AE122: 7
V123: Nový Zéland | W123: USD | X123: americký dolar | Y123: 65 | AA123: 83 | AB123: 2023-05-01 | AC123: 0 | AD123: 83 | AE123: 1
V124: Omán | W124: EUR | X124: euro | Y124: 50 | AA124: 84 | AB124: 2023-05-02 | AC124: 1 | AD124: 84 | AE124: 2
V125: Pákistán | W125: EUR | X125: euro | Y125: 40 | AA125: 85 | AB125: 2023-05-03 | AC125: 1 | AD125: 85 | AE125: 3
V126: Panama | W126: USD | X126: americký dolar | Y126: 45 | AA126: 86 | AB126: 2023-05-04 | AC126: 1 | AD126: 86 | AE126: 4
V127: Paraguay | W127: USD | X127: americký dolar | Y127: 50 | AA127: 87 | AB127: 2023-05-05 | AC127: 1 | AD127: 87 | AE127: 5
V128: Peru | W128: USD | X128: americký dolar | Y128: 52 | AA128: 87 | AB128: 2023-05-06 | AC128: 0 | AD128: 87 | AE128: 6
V129: Pobřeží Slonoviny | W129: EUR | X129: euro | Y129: 40 | AA129: 87 | AB129: 2023-05-07 | AC129: 0 | AD129: 87 | AE129: 7
V130: Polsko | W130: EUR | X130: euro | Y130: 45 | AA130: 87 | AB130: 2023-05-08 | AC130: 0 | AD130: 87 | AE130: 1
V131: Portugalsko a Azory | W131: EUR | X131: euro | Y131: 40 | AA131: 88 | AB131: 2023-05-09 | AC131: 1 | AD131: 88 | AE131: 2
V132: Rakousko | W132: EUR | X132: euro | Y132: 45 | AA132: =AA131+AC132 -> 89 | AB132: 2023-05-10 | AC132: 1 | AD132: 89 | AE132: =WEEKDAY(AB132,2) -> 3
T133: =RIGHT(S133,3) ->  | V133: Rovníková Guinea | W133: EUR | X133: euro | Y133: 50 | AA133: 90 | AB133: 2023-05-11 | AC133: 1 | AD133: =AA132+AC133 -> 90 | AE133: 4
V134: Rumunsko | W134: EUR | X134: euro | Y134: 40 | AA134: 91 | AB134: 2023-05-12 | AC134: 1 | AD134: 91 | AE134: 5
V135: Rusko | W135: EUR | X135: euro | Y135: 45 | AA135: 91 | AB135: 2023-05-13 | AC135: 0 | AD135: 91 | AE135: 6
V136: Rwanda | W136: USD | X136: americký dolar | Y136: 55 | AA136: 91 | AB136: 2023-05-14 | AC136: 0 | AD136: 91 | AE136: 7
V137: Řecko | W137: EUR | X137: euro | Y137: 40 | AA137: 92 | AB137: 2023-05-15 | AC137: 1 | AD137: 92 | AE137: 1
V138: Salvador | W138: USD | X138: americký dolar | Y138: 45 | AA138: 93 | AB138: 2023-05-16 | AC138: 1 | AD138: 93 | AE138: 2
V139: Saúdská Arábie | W139: EUR | X139: euro | Y139: 50 | AA139: 94 | AB139: 2023-05-17 | AC139: 1 | AD139: 94 | AE139: 3
V140: Senegal | W140: EUR | X140: euro | Y140: 55 | AA140: 95 | AB140: 2023-05-18 | AC140: 1 | AD140: 95 | AE140: 4
V141: Severní Makedonie | W141: EUR | X141: euro | Y141: 40 | AA141: 96 | AB141: 2023-05-19 | AC141: 1 | AD141: 96 | AE141: 5
V142: Seychely | W142: EUR | X142: euro | Y142: 55 | AA142: 96 | AB142: 2023-05-20 | AC142: 0 | AD142: 96 | AE142: 6
V143: Sierra Leone | W143: EUR | X143: euro | Y143: 40 | AA143: 96 | AB143: 2023-05-21 | AC143: 0 | AD143: 96 | AE143: 7
V144: Singapur | W144: USD | X144: americký dolar | Y144: 60 | AA144: 97 | AB144: 2023-05-22 | AC144: 1 | AD144: 97 | AE144: 1
V145: Spojené arabské emiráty | W145: USD | X145: americký dolar | Y145: 55 | AA145: 98 | AB145: 2023-05-23 | AC145: 1 | AD145: 98 | AE145: 2
V146: Slovensko | W146: EUR | X146: euro | Y146: 35 | AA146: 99 | AB146: 2023-05-24 | AC146: 1 | AD146: 99 | AE146: 3
V147: Slovinsko | W147: EUR | X147: euro | Y147: 40 | AA147: 100 | AB147: 2023-05-25 | AC147: 1 | AD147: 100 | AE147: 4
V148: Somálsko | W148: USD | X148: americký dolar | Y148: 55 | AA148: 101 | AB148: 2023-05-26 | AC148: 1 | AD148: 101 | AE148: 5
V149: Spojené státy americké | W149: USD | X149: americký dolar | Y149: 60 | AA149: 101 | AB149: 2023-05-27 | AC149: 0 | AD149: 101 | AE149: 6
V150: Srbsko | W150: EUR | X150: euro | Y150: 35 | AA150: 101 | AB150: 2023-05-28 | AC150: 0 | AD150: 101 | AE150: 7
V151: Srí Lanka | W151: USD | X151: americký dolar | Y151: 50 | AA151: 102 | AB151: 2023-05-29 | AC151: 1 | AD151: 102 | AE151: 1
V152: Středoafrická republika | W152: USD | X152: americký dolar | Y152: 50 | AA152: 103 | AB152: 2023-05-30 | AC152: 1 | AD152: 103 | AE152: 2
V153: Súdán | W153: USD | X153: americký dolar | Y153: 55 | AA153: 104 | AB153: 2023-05-31 | AC153: 1 | AD153: 104 | AE153: 3
V154: Surinam | W154: USD | X154: americký dolar | Y154: 50 | AA154: 105 | AB154: 2023-06-01 | AC154: 1 | AD154: 105 | AE154: 4
V155: Svatý Tomáš a Princův ostrov | W155: EUR | X155: euro | Y155: 40 | AA155: 106 | AB155: 2023-06-02 | AC155: 1 | AD155: 106 | AE155: 5
V156: Svazijsko | W156: USD | X156: americký dolar | Y156: 55 | AA156: 106 | AB156: 2023-06-03 | AC156: 0 | AD156: 106 | AE156: 6
V157: Sýrie | W157: EUR | X157: euro | Y157: 50 | AA157: 106 | AB157: 2023-06-04 | AC157: 0 | AD157: 106 | AE157: 7
V158: Španělsko | W158: EUR | X158: euro | Y158: 50 | AA158: 107 | AB158: 2023-06-05 | AC158: 1 | AD158: 107 | AE158: 1
V159: Švédsko | W159: EUR | X159: euro | Y159: 65 | AA159: 108 | AB159: 2023-06-06 | AC159: 1 | AD159: 108 | AE159: 2
V160: Švýcarsko | W160: CHF | X160: švýcarský frank | Y160: 75 | AA160: 109 | AB160: 2023-06-07 | AC160: 1 | AD160: 109 | AE160: 3
V161: Tádžikistán | W161: EUR | X161: euro | Y161: 40 | AA161: 110 | AB161: 2023-06-08 | AC161: 1 | AD161: 110 | AE161: 4
V162: Tanzanie | W162: USD | X162: americký dolar | Y162: 55 | AA162: 111 | AB162: 2023-06-09 | AC162: 1 | AD162: 111 | AE162: 5
V163: Thajsko | W163: EUR | X163: euro | Y163: 40 | AA163: 111 | AB163: 2023-06-10 | AC163: 0 | AD163: 111 | AE163: 6
V164: Tchaj-wan | W164: EUR | X164: euro | Y164: 45 | AA164: 111 | AB164: 2023-06-11 | AC164: 0 | AD164: 111 | AE164: 7
V165: Togo | W165: EUR | X165: euro | Y165: 40 | AA165: 112 | AB165: 2023-06-12 | AC165: 1 | AD165: 112 | AE165: 1
V166: Tunisko | W166: EUR | X166: euro | Y166: 50 | AA166: 113 | AB166: 2023-06-13 | AC166: 1 | AD166: 113 | AE166: 2
V167: Turecko | W167: EUR | X167: euro | Y167: 40 | AA167: 114 | AB167: 2023-06-14 | AC167: 1 | AD167: 114 | AE167: 3
V168: Turkmenistán | W168: EUR | X168: euro | Y168: 45 | AA168: 115 | AB168: 2023-06-15 | AC168: 1 | AD168: 115 | AE168: 4
V169: Uganda | W169: USD | X169: americký dolar | Y169: 55 | AA169: 116 | AB169: 2023-06-16 | AC169: 1 | AD169: 116 | AE169: 5
V170: Ukrajina | W170: EUR | X170: euro | Y170: 45 | AA170: 116 | AB170: 2023-06-17 | AC170: 0 | AD170: 116 | AE170: 6
V171: Uruguay | W171: USD | X171: americký dolar | Y171: 55 | AA171: 116 | AB171: 2023-06-18 | AC171: 0 | AD171: 116 | AE171: 7
V172: Uzbekistán | W172: EUR | X172: euro | Y172: 40 | AA172: 117 | AB172: 2023-06-19 | AC172: 1 | AD172: 117 | AE172: 1
V173: Velká Británie | W173: GBP | X173: anglická libra | Y173: 45 | AA173: 118 | AB173: 2023-06-20 | AC173: 1 | AD173: 118 | AE173: 2
V174: Venezuela | W174: USD | X174: americký dolar | Y174: 65 | AA174: 119 | AB174: 2023-06-21 | AC174: 1 | AD174: 119 | AE174: 3
V175: Vietnam | W175: EUR | X175: euro | Y175: 40 | AA175: 120 | AB175: 2023-06-22 | AC175: 1 | AD175: 120 | AE175: 4
V176: Zambie | W176: USD | X176: americký dolar | Y176: 55 | AA176: 121 | AB176: 2023-06-23 | AC176: 1 | AD176: 121 | AE176: 5
V177: Zimbabwe | W177: USD | X177: americký dolar | Y177: 50 | AA177: 121 | AB177: 2023-06-24 | AC177: 0 | AD177: 121 | AE177: 6
V178: Ostatní země neuvedené v příloze | W178: EUR | X178: euro | Y178: 35 | AA178: 121 | AB178: 2023-06-25 | AC178: 0 | AD178: 121 | AE178: 7
AA179: 122 | AB179: 2023-06-26 | AC179: 1 | AD179: 122 | AE179: 1
AA180: 123 | AB180: 2023-06-27 | AC180: 1 | AD180: 123 | AE180: 2
AA181: 124 | AB181: 2023-06-28 | AC181: 1 | AD181: 124 | AE181: 3
AA182: 125 | AB182: 2023-06-29 | AC182: 1 | AD182: 125 | AE182: 4
AA183: 126 | AB183: 2023-06-30 | AC183: 1 | AD183: 126 | AE183: 5
AA184: 126 | AB184: 2023-07-01 | AC184: 0 | AD184: 126 | AE184: 6
AA185: 126 | AB185: 2023-07-02 | AC185: 0 | AD185: 126 | AE185: 7
AA186: 127 | AB186: 2023-07-03 | AC186: 1 | AD186: 127 | AE186: 1
AA187: 128 | AB187: 2023-07-04 | AC187: 1 | AD187: 128 | AE187: 2
AA188: 128 | AB188: 2023-07-05 | AC188: 0 | AD188: 128 | AE188: 3
AA189: 128 | AB189: 2023-07-06 | AC189: 0 | AD189: 128 | AE189: 4
AA190: 129 | AB190: 2023-07-07 | AC190: 1 | AD190: 129 | AE190: 5
AA191: 129 | AB191: 2023-07-08 | AC191: 0 | AD191: 129 | AE191: 6
AA192: 129 | AB192: 2023-07-09 | AC192: 0 | AD192: 129 | AE192: 7
AA193: 130 | AB193: 2023-07-10 | AC193: 1 | AD193: 130 | AE193: 1
AA194: 131 | AB194: 2023-07-11 | AC194: 1 | AD194: 131 | AE194: 2
AA195: 132 | AB195: 2023-07-12 | AC195: 1 | AD195: 132 | AE195: 3
AA196: =AA195+AC196 -> 133 | AB196: 2023-07-13 | AC196: 1 | AD196: 133 | AE196: =WEEKDAY(AB196,2) -> 4
AA197: 134 | AB197: 2023-07-14 | AC197: 1 | AD197: =AA196+AC197 -> 134 | AE197: 5
AA198: 134 | AB198: 2023-07-15 | AC198: 0 | AD198: 134 | AE198: 6
AA199: 134 | AB199: 2023-07-16 | AC199: 0 | AD199: 134 | AE199: 7
AA200: 135 | AB200: 2023-07-17 | AC200: 1 | AD200: 135 | AE200: 1
... 970 more rows
